Workbook

Sheet Hoja4 (hidden)
A1: CLASIFICACIÓN DE LA INFORMACIÓN | B1: (Varios elementos)
A17: OTI | B17: 50 | C17: 0.3731343284
A18: SECRETARIA GENERAL Y JURIDICA | B18: 43 | C18: 0.3208955224
A19: FINANCIERA Y ADMON | B19: 25 | C19: 0.1865671642
A20: ESTRATEGIA | B20: 4 | C20: 0.02985074627
A21: NEGOCIOS | B21: 4 | C21: 0.02985074627
A22: TÉCNICA | B22: 4 | C22: 0.02985074627
A23: OPERACIONES | B23: 3 | C23: 0.0223880597
A24: RIESGOS | B24: 1 | C24: 0.007462686567
A25: TOTAL GENERAL | B25: 134 | C25: 1

Sheet Hoja3 (hidden)
I1: DEPENDENCIA | J1: Planeado | K1: Contratado | L1: %
A2: DEPENDENCIA | B2: VALOR | C2: PRESUPUESTO CONTRATADO | D2: % | I2: ESTRATEGIA | J2: 1172306306 | K2: 1172306306 | L2: =K2/J2 -> 1
A3: OFICINA DE ESTRATEGIA Y DESARROLLO | B3: 694295625 | I3: FINANCIERA Y ADMON | J3: 8752267945 | K3: 5335356771 | L3: =K3/J3 -> 0.6095970558
A4: VICEPRESIDENCIA FINANCIERA Y ADMINISTRATIVA | B4: 8752267945 | C4: 3088070598 | D4: =C4/B4 -> 0.3528309025 | I4: NEGOCIOS | J4: 1.336003318e+10 | K4: 12691995310 | L4: =K4/J4 -> 0.9499972894
A5: VICEPRESIDENCIA DE NEGOCIOS | B5: 7381429080 | C5: 12227414358 | D5: =C5/B5 -> 1.656510443 | I5: OPERACIONES | J5: 38366883401 | K5: 31119191770 | L5: =K5/J5 -> 0.8110951167
A6: VICEPRESIDENCIA DE OPERACIONES | B6: 38366883401 | C6: 31119191770 | D6: 0.8110951167 | I6: OTI | J6: 1.63261224e+10 | K6: 9124308413 | L6: =K6/J6 -> 0.5588778639
A7: OFICINA DE TECNOLOGIAS DE LA INFORMACIÓN | B7: 1.63261224e+10 | C7: 201210990 | D7: 0.01232448129 | I7: PYP | J7: 120411187909 | K7: 99075259486 | L7: 0.8228077574
A8: VICEPRESIDENCIA DE PROMOCIÓN Y PREVENCIÓN | B8: 120411187909 | C8: 81402850713 | D8: 0.6760405916 | I8: RIESGOS | J8: 68348301 | K8: 68348301 | L8: 1
A9: OFICINA DE GESTIÓN INTEGRAL DE RIESGOS | B9: 68348301 | D9: 0 | I9: SECRETARIA GENERAL Y JURIDICA | J9: 5599124510 | K9: 4399646576 | L9: 0.7857740202
A10: SECRETARIA GENERAL Y JURIDICA | B10: 6077135191 | C10: 7043728834 | D10: 1.159054162 | I10: TÉCNICA | J10: 1132517831 | K10: 1125458561 | L10: 0.9937667471
A11: VICEPRESIDENCIA TÉCNICA | B11: 1132517831 | C11: 725588815 | D11: 0.6406864379 | I11: Total general | J11: =SUM(J2:J10) -> 2.051887918e+11 | K11: =SUM(K2:K10) -> 164111871494 | L11: 0.7998091419
A12: PRESUPUESTOS COMPARTIDOS
A13: VP NEGOCIOS Y VP FINANCIERA Y ADMON | B13: 269479593
A14: VP NEGOCIOS Y SECRETARIA GENERAL | B14: 110000000
A15: VP NEGOCIOS, SECRETARIA GENERAL y VP PYP | B15: 6589650515
A16: OFICINA DE ESTRATEGIA, G. TALENTO HUMANO y OFICINA DE RIESGOS | B16: 97086437
A17: TOTAL PLAN | B17: 2.062764042e+11 | C17: 135808056078

Sheet Hoja1 (hidden)
B3: Datos | E3: VICEPRESIDENCIA/SECTREATARÍA GENERAL | F3: CANTIDAD PREVISTA DE CONTRATOS | G3: VALOR PLANEADO A CONTRATAR | H3: % del valor estimado
A4: VICEPRESIDENCIA/SECTREATARÍA GENERAL | B4: CANTIDAD PREVISTA DE CONTRATOS | C4: VALOR PLANEADO A CONTRATAR | E4: Financiera y Administrativa | F4: 39 | G4: 9198008297 | H4: =G4/$G$10 -> 0.0461408428
A5: NEGOCIOS | B5: 26 | C5: 10913533198 | E5: Negocios | F5: 23 | G5: 8440161697 | H5: 0.04233918491
A6: Operaciones | B6: 11 | C6: 16055336512 | E6: Operaciones | F6: 14 | G6: 30469448195 | H6: 0.1528467875
A7: SECRETARIA GENERAL Y JURÍDICA | B7: 77 | C7: 2.613163508e+10 | E7: Promoción y Prevención | F7: 270 | G7: 119824776984 | H7: 0.6010884118
A8: PyP | B8: 311 | C8: 139682224243 | E8: Secretaria General y Jurídica | F8: 128 | G8: 2.979845428e+10 | H8: 0.149480817
A9: Total general | B9: 425 | C9: 1.92782729e+11 | E9: Técnica | F9: 438 | G9: 1615494000 | H9: 0.008103956019
E10: Total general | F10: 912 | G10: 1.993463435e+11
A16: CANTIDAD PREVISTA DE CONTRATOS
A17: MES | B17: Total
A18: ENERO | B18: 320
A19: FEBRERO | B19: 6
A20: MARZO | B20: 1
A21: ABRIL | B21: 1
A22: JUNIO | B22: 9
A23: JULIO | B23: 24
A24: AGOSTO | B24: 6
A25: SEPTIEMBRE | B25: 8
A26: OCTUBRE | B26: 9
A27: NOVIEMBRE | B27: 11
A28: DICIEMBRE | B28: 30
A29: Total general | B29: 425
A36: MES | B36: Total
A37: ENERO | B37: 254
A38: FEBRERO | B38: 104
A39: MARZO | B39: 89
A40: ABRIL | B40: 83
A41: MAYO | B41: 62
A42: JUNIO | B42: 59
A43: JULIO | B43: 58
A44: AGOSTO | B44: 46
A45: SEPTIEMBRE | B45: 34
A46: OCTUBRE | B46: 41
A47: NOVIEMBRE | B47: 55
A48: DICIEMBRE | B48: 27
A49: Total general | B49: 912

Sheet REPARTO (hidden)
A1: ¿YA SE CONTRATÓ? | B1: (Todas)
A2: Modalidad de selección | B2: (Todas)
G3: 250000 | I3: 120000
A4: Etiquetas de fila | G4: =G3/20 -> 12500
A5: NEGOCIOS
A6: Riesgos laborales
A7: Mercadeo y Comunicaciones
A8: Canales
A9: Experiencia del cliente
A10: Vida
A11: Operaciones
A12: Gcia. Afiliaciones y Novedades
A13: Gcia. Recaudo y Cartera
A14: Vicepresidencia de operaciones
A15: SECRETARIA GENERAL Y JURÍDICA
A16: GERENCIA JURÍDICA
A17: Oficina de Tecnologías de la Información
A18: Oficina Gestión Integral de Riesgos
A19: PyP
A20: Gerencia de administración del riesgo
A21: Total general

Sheet PLAN
E2: PLAN ANUAL DE ADQUISICIONES
E4: A. INFORMACIÓN GENERAL DE LA ENTIDAD
E5: Nombre | F5: POSITIVA COMPAÑÍA DE SEGUROS S.A. | K5: El principal objetivo del Plan Anual de Adquisiciones es permitir que la entidad estatal aumente la probabilidad de lograr mejores condiciones de competencia a través de la participación de un mayor número de operadores económicos interesados en los procesos de selección que se van a adelantar durante el año fiscal, y que el Estado cuente con información suficiente para realizar compras coordinadas.
E6: Dirección | F6: Avenida Carrera 45 No. 94-72
E7: Teléfono | F7: PBX:(57-1)6502200
E8: Página web | F8: www.positiva.gov.co
E9: Misión y visión | F9: MISION: Protegemos Integralmente la vida de las personas contribuyendo al bienestar de las familias, las empresas y la sociedad VISION: Ser la aseguradora que garantiza oportunamente la máxima protección a nuestros clientes
E10: Perspectiva estratégica | F10: POSITIVA COMPAÑÍA DE SEGUROS S.A., diseña e implementa un modelo de negocio de Responsabilidad Global que contribuya con la rentabilidad y el desarrollo sostenible de la empresa y que coadyude con el logro de sus objetivos específicos.
E11: Información de contacto | F11: Gerencia de Abastecimiento Estratégico contratacion@positiva.gov.co PBX: (1)6502200 Ext: 10641 | K11: El Plan Anual de Adquisiciones es un documento de naturaleza informativa y las adquisiciones incluidas en el mismo pueden ser canceladas, revisadas o modificadas. Esta información no representa compromiso u obligación alguna por parte de la entidad estatal ni la compromete a adquirir los bienes, obras y servicios en él señalados.
E12: Valor total del PAA | F12: =SUM(M:M) -> 2.441937731e+11
E13: Límite de contratación menor cuantía | F13: Régimen Especial de Contratación | Z13: SI
E14: Límite de contratación mínima cuantía | F14: Régimen Especial de Contratación | Z14: NO
E15: Fecha de última actualización del PAA | F15: 2022-09-21
E17: NOTA | F17: Acorde con el Decreto 2973 de 2013 en relación con el régimen de las reservas técnicas de las entidades aseguradoras y se dictan otras disposiciones, los contratos para la atención del siniestro se pagan con los recursos destinados a la reserva técnica. Este tipo de contratos son de cuantía indeterminada y aunque es determinable, al momento de la planeación únicamente se refleja el valor asociado al control presupuestal.
E21: B. ADQUISICIONES PLANEADAS
A22: VICEPRESIDENCIA/SECTREATARÍA GENERAL | B22: ÁREA | C22: ¿YA SE CONTRATÓ? | D22: ORDEN | E22: Códigos UNSPSC | F22: Descripción | G22: Fecha estimada de inicio de proceso de selección | H22: MES | I22: Fecha fin contrato | J22: Duración estimada del contrato (Meses) | K22: Modalidad de selección | L22: Fuente de los recursos | M22: Valor total estimado | N22: Valor estimado en la vigencia actual | O22: ¿Se requieren vigencias futuras? | P22: Estado de solicitud de vigencias futuras | Q22: Datos de contacto del responsable | R22: ¿Su necesidad contiene información financiera y secretos comerciales? Ejm: Tarifas comerciales, disminución de la siniestralidad, atención o servicio conexo al siniestro, know how del negocio, clasificación de empresas, estrategias comerciales. | S22: ¿Su necesidad y el proceso de contratación son catalogados como misionales? Ejm: Gestión comercial, Gestión de clientes, Atención al siniestro, Estrategias de disminución de la siniestralidad, Gestión integral del portafolio, Gestión de reservas y reaseguros. | T22: En caso de ser una necesidad tecnologica ¿Su necesidad contiene información sensible? Ejm: Administración de bases de datos de clientes, información comercial de la Compañía, información relevante al know how del negocio. | U22: ¿De publicarse esta información referente al proceso de contratación podrían vulnerarse los intereses de Positiva con relación a su competencia al revelar información misional? | V22: CLASIFICACIÓN DE LA INFORMACIÓN | W22: DESCRIPCIÓN AJUSTADA
A23: SECRETARIA GENERAL Y JURÍDICA | B23: GERENCIA JURÍDICA | C23: SI | D23: C23132022 | E23: 80111607 | F23: Prestar servicios profesionales de asesoría en la rama del derecho penal, a través de la generación de conceptos jurídicos relacionados con eventuales hechos que pueden derivar de actos contrarios al Ordenamiento Penal Colombiano, así como la elaboración, presentación y seguimiento de denuncias penales por hechos que constituyan delitos en contra de los intereses de Positiva Compañía de Seguros S.A., asesoría y representación judicial en calidad de apoderado dentro de las investigaciones penales. | G23: 2021-12-01 | H23: =MONTH(G23) -> 12 | I23: 2021-01-05 | J23: 12 | K23: Invitación directa | L23: GastosAdministrativos | M23: 138000000 | N23: 138000000 | O23: NO | P23: N/A | Q23: Gerencia de Abastecimiento Estratégico contratacion@positiva.gov.co PBX: (1)6502200 Ext: 10641 | R23: NO | S23: NO | T23: NO | U23: NO | V23: =IF(U23="SI","Pública clasificada","Pública") -> Pública | W23: =CONCATENATE(D23,"-","Tipo de información"," ",V23,"-",F23) -> C23132022-Tipo de información Pública-Prestar servicios profesionales de asesoría en la rama del derecho penal, a través de la generación de conceptos jurídicos relacionados con eventuales hechos que pueden derivar de actos contrarios al Ordenamiento Penal Colombiano, así como la elaboración, presentación y seguimiento de denuncias penales por hechos que constituyan delitos en contra de los intereses de Positiva Compañía de Seguros S.A., asesoría y representación judicial en calidad de apoderado dentro de las investigaciones penales.
A24: SECRETARIA GENERAL Y JURÍDICA | B24: GERENCIA JURÍDICA | C24: SI | D24: C23142021 | E24: 80111607 | F24: Prestación de servicios profesionales como abogado especializado en derecho comercial, brindando atención en los diferentes procesos concursales de restructuración y reorganización empresarial, liquidación obligatoria y liquidación judicial conforme a las disposiciones establecidas en las leyes 550 de 1999 y 1116 de 2006 y, atendiendo a nivel nacional los procesos de liquidación forzosa, administrativa, liquidación de empresas afiliadas a Riegos Laborales y liquidación de entidades financieras, entre otros, en aras de cumplir con la debida defensa de los intereses de Positiva Compañía de Seguros S.A. | G24: 2021-12-01 | H24: 12 | I24: 2022-01-03 | J24: 12 | K24: Invitación directa | L24: GastosAdministrativos | M24: 187200000 | N24: 187200000 | O24: NO | P24: N/A | Q24: Gerencia de Abastecimiento Estratégico contratacion@positiva.gov.co PBX: (1)6502200 Ext: 10641 | R24: NO | S24: NO | T24: NO | U24: NO | V24: Pública | W24: C23142021-Tipo de información Pública-Prestación de servicios profesionales como abogado especializado en derecho comercial, brindando atención en los diferentes procesos concursales de restructuración y reorganización empresarial, liquidación obligatoria y liquidación judicial conforme a las disposiciones establecidas en las leyes 550 de 1999 y 1116 de 2006 y, atendiendo a nivel nacional los procesos de liquidación forzosa, administrativa, liquidación de empresas afiliadas a Riegos Laborales y liquidación de entidades financieras, entre otros, en aras de cumplir con la debida defensa de los intereses de Positiva Compañía de Seguros S.A.
A25: SECRETARIA GENERAL Y JURÍDICA | B25: GERENCIA JURÍDICA | C25: SI | D25: C23152022 | E25: 80111607 | F25: Prestar servicios profesionales de una firma de Abogados especializados en derecho comercial, de seguros y seguridad social, para que asesore y represente judicialmente a la Compañía en los procesos en que sea parte activa o pasiva, para que atienda audiencias de conciliación judicial, prejudicial y extrajudicial en los procesos en que sea parte la entidad, igualmente para rendir conceptos jurídicos en las áreas mencionadas y capacitar al personal de la Compañía cuando se le solicite. | G25: 2021-12-01 | H25: 12 | I25: 2022-01-03 | J25: 12 | K25: Invitación directa | L25: GastosAdministrativos | M25: 220000000 | N25: 220000000 | O25: NO | P25: N/A | Q25: Gerencia de Abastecimiento Estratégico contratacion@positiva.gov.co PBX: (1)6502200 Ext: 10641 | R25: NO | S25: NO | T25: NO | U25: NO | V25: Pública | W25: C23152022 -Tipo de información Pública-Prestar servicios profesionales de una firma de Abogados especializados en derecho comercial, de seguros y seguridad social, para que asesore y represente judicialmente a la Compañía en los procesos en que sea parte activa o pasiva, para que atienda audiencias de conciliación judicial, prejudicial y extrajudicial en los procesos en que sea parte la entidad, igualmente para rendir conceptos jurídicos en las áreas mencionadas y capacitar al personal de la Compañía cuando se le solicite.
A26: SECRETARIA GENERAL Y JURÍDICA | B26: GERENCIA JURÍDICA | C26: SI | D26: C23162022 | E26: 80111607 | F26: Prestación de servicios profesionales especializados en derecho corporativo, lo cual incluye: derecho de la propiedad industrial y derecho marcario, protección de datos personales (habeas data y financiero), derechos de autor, secreto empresarial, seguridad de la información y Transparencia y Derecho de Acceso; El asesor podrá además ser encargado de la atención de audiencias de conciliación; gestiones en reclamaciones administrativas ante el Ministerio del Trabajo y otros entes administrativos; y trámites de registro ante organismos como las cámaras de comercio, la Superintendencia de Industria y Comercio, y todos aquellos que resulten necesarios para el cabal desarrollo de las actividades asignadas en cumplimiento del objeto contractual. | G26: 2021-12-01 | H26: 12 | I26: 2022-01-03 | J26: 12 | K26: Invitación directa | L26: GastosAdministrativos | M26: 138000000 | N26: 138000000 | O26: NO | P26: N/A | Q26: Gerencia de Abastecimiento Estratégico contratacion@positiva.gov.co PBX: (1)6502200 Ext: 10641 | R26: NO | S26: NO | T26: NO | U26: NO | V26: Pública | W26: C23162022-Tipo de información Pública-Prestación de servicios profesionales especializados en derecho corporativo, lo cual incluye: derecho de la propiedad industrial y derecho marcario, protección de datos personales (habeas data y financiero), derechos de autor, secreto empresarial, seguridad de la información y Transparencia y Derecho de Acceso; El asesor podrá además ser encargado de la atención de audiencias de conciliación; gestiones en reclamaciones administrativas ante el Ministerio del Trabajo y otros entes administrativos; y trámites de registro ante organismos como las cámaras de comercio, la Superintendencia de Industria y Comercio, y todos aquellos que resulten necesarios para el cabal desarrollo de las actividades asignadas en cumplimiento del objeto contractual.
A27: SECRETARIA GENERAL Y JURÍDICA | B27: GERENCIA JURÍDICA | C27: SI | D27: C23192022 | E27: 80111607 | F27: Prestar servicios profesionales en Derecho Público, Derecho Tributario, Derecho Civil y Derecho Comercial, para la representación judicial, audiencias de conciliación judicial y extrajudicial en los procesos en que sea parte la entidad, elaboración de conceptos y acompañamiento en todos los procesos en los que interviene la Gerencia Jurídica, adelantar trámites ante entidades administrativas y de inspección, vigilancia y control, en especial ante la Procuraduría General de la Nación y estructurar y dictar capacitaciones en temas jurídicos específicos, requeridos por Positiva Compañía de Seguros S.A | G27: 2021-12-01 | H27: 12 | I27: 2022-01-03 | J27: 12 | K27: Invitación directa | L27: GastosAdministrativos | M27: 80400000 | N27: 80400000 | O27: NO | P27: N/A | Q27: Gerencia de Abastecimiento Estratégico contratacion@positiva.gov.co PBX: (1)6502200 Ext: 10641 | R27: NO | S27: NO | T27: NO | U27: NO | V27: Pública | W27: C23192022-Tipo de información Pública-Prestar servicios profesionales en Derecho Público, Derecho Tributario, Derecho Civil y Derecho Comercial, para la representación judicial, audiencias de conciliación judicial y extrajudicial en los procesos en que sea parte la entidad, elaboración de conceptos y acompañamiento en todos los procesos en los que interviene la Gerencia Jurídica, adelantar trámites ante entidades administrativas y de inspección, vigilancia y control, en especial ante la Procuraduría General de la Nación y estructurar y dictar capacitaciones en temas jurídicos específicos, requeridos por Positiva Compañía de Seguros S.A
A28: SECRETARIA GENERAL Y JURÍDICA | B28: GERENCIA JURÍDICA | C28: SI | D28: C23172022 | E28: 80111607 | F28: Prestar servicios profesionales especializados en derecho corporativo, derecho de la propiedad industrial y derecho marcario; con el propósito de ejercer el mandato judicial en defensa de los intereses de Positiva Compañía de Seguros S.A, en la demanda interpuesta ante la Superintendencia de Industria y Comercio, por La Positiva Seguros y Reaseguros (PERU), con radicado 19-084346. | G28: 2021-12-01 | H28: 12 | I28: 2019-08-30 | J28: INDETERMINADO | K28: Invitación directa | L28: GastosAdministrativos | M28: 117852000 | N28: 117852000 | O28: NO | P28: N/A | Q28: Gerencia de Abastecimiento Estratégico contratacion@positiva.gov.co PBX: (1)6502200 Ext: 10641 | R28: NO | S28: NO | T28: NO | U28: NO | V28: Pública | W28: C23172022-Tipo de información Pública-Prestar servicios profesionales especializados en derecho corporativo, derecho de la propiedad industrial y derecho marcario; con el propósito de ejercer el mandato judicial en defensa de los intereses de Positiva Compañía de Seguros S.A, en la demanda interpuesta ante la Superintendencia de Industria y Comercio, por La Positiva Seguros y Reaseguros (PERU), con radicado 19-084346.
A29: SECRETARIA GENERAL Y JURÍDICA | B29: GERENCIA JURÍDICA | C29: SI | D29: C23222022 | E29: 80111607 | F29: Prestar servicios profesionales en derecho de Publico y Constitucional, para formular estrategias, modelo y Plan de Mejora, tendientes a la disminución de acciones de tutelas y procesos judiciales en contra de la compañía, efectuando una revisión de las tutelas y procesos judiciales con el fin de identificar las causas raíces (tipologías) generadoras de las demandas y mitigar el riesgo de la entidad en términos de fallos judiciales. | G29: 2021-12-01 | H29: 12 | I29: 2022-01-03 | J29: 12 | K29: Invitación directa | L29: GastosAdministrativos | M29: 228000000 | N29: 228000000 | O29: NO | P29: N/A | Q29: Gerencia de Abastecimiento Estratégico contratacion@positiva.gov.co PBX: (1)6502200 Ext: 10641 | R29: NO | S29: NO | T29: NO | U29: NO | V29: Pública | W29: C23222022-Tipo de información Pública-Prestar servicios profesionales en derecho de Publico y Constitucional, para formular estrategias, modelo y Plan de Mejora, tendientes a la disminución de acciones de tutelas y procesos judiciales en contra de la compañía, efectuando una revisión de las tutelas y procesos judiciales con el fin de identificar las causas raíces (tipologías) generadoras de las demandas y mitigar el riesgo de la entidad en términos de fallos judiciales.
A30: SECRETARIA GENERAL Y JURÍDICA | B30: GERENCIA JURÍDICA | C30: SI | D30: C23202022 | E30: 80111607 | F30: Prestar de servicios de profesionales para apoyar y soportar asuntos de Derecho Financiero | G30: 2021-12-01 | H30: 12 | I30: 2022-01-03 | J30: 12 | K30: Invitación directa | L30: GastosAdministrativos | M30: 43800000 | N30: 43800000 | O30: NO | P30: N/A | Q30: Gerencia de Abastecimiento Estratégico contratacion@positiva.gov.co PBX: (1)6502200 Ext: 10641 | R30: NO | S30: NO | T30: NO | U30: NO | V30: Pública | W30: C23202022-Tipo de información Pública-Prestar de servicios de profesionales para apoyar y soportar asuntos de Derecho Financiero
A31: SECRETARIA GENERAL Y JURÍDICA | B31: GERENCIA JURÍDICA | C31: SI | D31: C23242022 | E31: 80111607 | F31: Prestar de servicios de profesionales para apoyar y soportar asuntos de contratación estatal, derecho económico, derecho administrativo, derecho contractual y hacienda pública. | G31: 2021-12-01 | H31: 12 | I31: 2022-01-03 | J31: 12 | K31: Invitación directa | L31: GastosAdministrativos | M31: 50000000 | N31: 50000000 | O31: NO | P31: N/A | Q31: Gerencia de Abastecimiento Estratégico contratacion@positiva.gov.co PBX: (1)6502200 Ext: 10641 | R31: NO | S31: NO | T31: NO | U31: NO | V31: Pública | W31: C23242022-Tipo de información Pública-Prestar de servicios de profesionales para apoyar y soportar asuntos de contratación estatal, derecho económico, derecho administrativo, derecho contractual y hacienda pública.
A32: SECRETARIA GENERAL Y JURÍDICA | B32: GERENCIA JURÍDICA | C32: NO | D32: C23262022 | E32: 80111607 | F32: EL CONTRATISTA, se compromete con POSITIVA COMPAÑÍA DE SEGUROS S.A., a la prestación de servicios profesionales en materia penal especializada, representación judicial y defensa de los intereses económicos de POSITIVA COMPAÑÍA DE SEGUROS SA, dentro de los procesos judiciales relacionados con la apropiación de recursos de la extinta Junta Regional de Calificación de Invalidez del Cesar y contra todas las personas que resulten involucradas. | G32: 2021-12-01 | H32: 12 | I32: 2021-04-28 | J32: INDETERMINADO | K32: Invitación directa | L32: GastosAdministrativos | M32: 33320000 | N32: 33320000 | O32: NO | P32: N/A | Q32: Gerencia de Abastecimiento Estratégico contratacion@positiva.gov.co PBX: (1)6502200 Ext: 10641 | R32: NO | S32: NO | T32: NO | U32: NO | V32: Pública | W32: C23262022-Tipo de información Pública-EL CONTRATISTA, se compromete con POSITIVA COMPAÑÍA DE SEGUROS S.A., a la prestación de servicios profesionales en materia penal especializada, representación judicial y defensa de los intereses económicos de POSITIVA COMPAÑÍA DE SEGUROS SA, dentro de los procesos judiciales relacionados con la apropiación de recursos de la extinta Junta Regional de Calificación de Invalidez del Cesar y contra todas las personas que resulten involucradas.
A33: SECRETARIA GENERAL Y JURÍDICA | B33: GERENCIA JURÍDICA | C33: NO | D33: C23272022 | E33: 80111607 | F33: EL CONTRATISTA prestará a favor de POSITIVA sus servicios profesionales para Representar Judicial y extrajudicialmente los intereses de la Compañía en los dos litigios iniciados por el proveedor Belisario Velásquez & Asociados en contra de la Compañía | G33: 2021-12-01 | H33: 12 | I33: 2021-06-21 | J33: INDETERMINADO | K33: Invitación directa | L33: GastosAdministrativos | M33: 131000000 | N33: 131000000 | O33: NO | P33: N/A | Q33: Gerencia de Abastecimiento Estratégico contratacion@positiva.gov.co PBX: (1)6502200 Ext: 10641 | R33: NO | S33: NO | T33: NO | U33: NO | V33: Pública | W33: C23272022-Tipo de información Pública-EL CONTRATISTA prestará a favor de POSITIVA sus servicios profesionales para Representar Judicial y extrajudicialmente los intereses de la Compañía en los dos litigios iniciados por el proveedor Belisario Velásquez & Asociados en contra de la Compañía
A34: SECRETARIA GENERAL Y JURÍDICA | B34: GERENCIA JURÍDICA | C34: SI | D34: C23182022 | E34: 80111607 | F34: EL CONTRATISTA, se compromete con POSITIVA COMPAÑÍA DE SEGUROS S.A., a la Prestación de servicios profesionales para el acompañamiento jurídico, preparación de la estrategia y representación judicial y extrajudicial de los intereses de POSITIVA en la formulación de acciones administrativas y judiciales necesarias para evitar un daño antijurídico por cuenta de la invitación pública No. 003 de 2020- FOMAG. | G34: 2021-12-01 | H34: 12 | I34: 2021-09-10 | J34: INDETERMINADO | K34: Invitación directa | L34: GastosAdministrativos | M34: 83800000 | N34: 83800000 | O34: NO | P34: N/A | Q34: Gerencia de Abastecimiento Estratégico contratacion@positiva.gov.co PBX: (1)6502200 Ext: 10641 | R34: NO | S34: NO | T34: NO | U34: NO | V34: Pública | W34: C23182022-Tipo de información Pública-EL CONTRATISTA, se compromete con POSITIVA COMPAÑÍA DE SEGUROS S.A., a la Prestación de servicios profesionales para el acompañamiento jurídico, preparación de la estrategia y representación judicial y extrajudicial de los intereses de POSITIVA en la formulación de acciones administrativas y judiciales necesarias para evitar un daño antijurídico por cuenta de la invitación pública No. 003 de 2020- FOMAG.
A35: SECRETARIA GENERAL Y JURÍDICA | B35: GERENCIA JURÍDICA | C35: SI | E35: 80111607 | F35: El CONTRATISTA, se compromete con POSITIVA COMPAÑÍA DE SEGUROS S.A., a la prestación de servicios profesionales de abogado para representar los intereses de la Compañía en los procesos judiciales asignados, así como las audiencias de conciliación judicial, prejudicial, en los procesos en que sea parte la Entidad en calidad de demandante o demandado, en las Sucursales de Arauca, Casanare, Santander y Norte de Santander. Igualmente para rendir conceptos jurídicos en las áreas especializadas a contratar y prestar la asesoría jurídica que se le solicite. | G35: 2021-12-01 | H35: 12 | I35: 2022-01-11 | J35: 12 | K35: Invitación directa | L35: SINIESTRO | M35: 270000000 | N35: 270000000 | O35: NO | P35: N/A | Q35: Gerencia de Abastecimiento Estratégico contratacion@positiva.gov.co PBX: (1)6502200 Ext: 10641 | R35: NO | S35: NO | T35: NO | U35: NO | V35: Pública | W35: -Tipo de información Pública-El CONTRATISTA, se compromete con POSITIVA COMPAÑÍA DE SEGUROS S.A., a la prestación de servicios profesionales de abogado para representar los intereses de la Compañía en los procesos judiciales asignados, así como las audiencias de conciliación judicial, prejudicial, en los procesos en que sea parte la Entidad en calidad de demandante o demandado, en las Sucursales de Arauca, Casanare, Santander y Norte de Santander. Igualmente para rendir conceptos jurídicos en las áreas especializadas a contratar y prestar la asesoría jurídica que se le solicite.
A36: SECRETARIA GENERAL Y JURÍDICA | B36: GERENCIA JURÍDICA | C36: SI | E36: 80111607 | F36: EL Adjudicatario se compromete a la prestación de servicios profesionales para brindar asesoría en la elaboración y prestación de conceptos jurídicos con ocasión de hechos relevantes para la entidad que merezcan un análisis desde el punto de vista del drecho penal, asimismo la representación júridico penal de POSITIVA COMPAÑÍA DE SEGUROS S.A., dentro de las investigaciones penales que se inicien para poner en conocimiento de las autoridades competentes presuntas conductas delictivas perpretadas en su contra | G36: 2021-12-01 | H36: 12 | I36: 2019-01-25 | J36: INDETERMINADO | K36: Invitación directa | L36: SINIESTRO | M36: 50000000 | N36: 50000000 | O36: NO | P36: N/A | Q36: Gerencia de Abastecimiento Estratégico contratacion@positiva.gov.co PBX: (1)6502200 Ext: 10641 | R36: NO | S36: NO | T36: NO | U36: NO | V36: Pública | W36: -Tipo de información Pública-EL Adjudicatario se compromete a la prestación de servicios profesionales para brindar asesoría en la elaboración y prestación de conceptos jurídicos con ocasión de hechos relevantes para la entidad que merezcan un análisis desde el punto de vista del drecho penal, asimismo la representación júridico penal de POSITIVA COMPAÑÍA DE SEGUROS S.A., dentro de las investigaciones penales que se inicien para poner en conocimiento de las autoridades competentes presuntas conductas delictivas perpretadas en su contra
A37: SECRETARIA GENERAL Y JURÍDICA | B37: GERENCIA JURÍDICA | C37: SI | E37: 80111607 | F37: Prestar servicios profesionales de firma de Abogados Especializados en el área de Derecho Laboral con experiencia en el manejo de las Altas Cortes y en especial La Corte Suprema de Justicia, con el propósito de ejercer el mandato judicial en defensa de los intereses de Positiva Compañía de Seguros S.A, ante las autoridades judiciales, administrativas y/o ante particulares con funciones judiciales, a nivel de la etapa de casación. | G37: 2021-12-01 | H37: 12 | I37: 2022-01-11 | J37: 12 | K37: Invitación directa | L37: SINIESTRO | M37: 295000000 | N37: 295000000 | O37: NO | P37: N/A | Q37: Gerencia de Abastecimiento Estratégico contratacion@positiva.gov.co PBX: (1)6502200 Ext: 10641 | R37: NO | S37: NO | T37: NO | U37: NO | V37: Pública | W37: -Tipo de información Pública-Prestar servicios profesionales de firma de Abogados Especializados en el área de Derecho Laboral con experiencia en el manejo de las Altas Cortes y en especial La Corte Suprema de Justicia, con el propósito de ejercer el mandato judicial en defensa de los intereses de Positiva Compañía de Seguros S.A, ante las autoridades judiciales, administrativas y/o ante particulares con funciones judiciales, a nivel de la etapa de casación.
A38: SECRETARIA GENERAL Y JURÍDICA | B38: GERENCIA JURÍDICA | C38: SI | E38: 80111607 | F38: Prestar servicios profesionales de recobro vía judicial, de las prestaciones económicas y asistenciales derivadas de Enfermedad Laboral, contra las ARL que hubieren asumido ese riesgo con anterioridad, a prorrata del tiempo durante el cual se otorgó dicha prestación | G38: 2021-12-01 | H38: 12 | I38: 2022-01-11 | J38: 12 | K38: Invitación directa | L38: SINIESTRO | M38: INDETERMINADO | N38: INDETERMINADO | O38: NO | P38: N/A | Q38: Gerencia de Abastecimiento Estratégico contratacion@positiva.gov.co PBX: (1)6502200 Ext: 10641 | R38: NO | S38: NO | T38: NO | U38: NO | V38: Pública | W38: -Tipo de información Pública-Prestar servicios profesionales de recobro vía judicial, de las prestaciones económicas y asistenciales derivadas de Enfermedad Laboral, contra las ARL que hubieren asumido ese riesgo con anterioridad, a prorrata del tiempo durante el cual se otorgó dicha prestación
A39: SECRETARIA GENERAL Y JURÍDICA | B39: GERENCIA JURÍDICA | C39: NO | E39: 80111607 | F39: Prestar servicios profesionales especializados en seguros y seguridad social, para la atención y representación de la Compañía en procesos judiciales en los cuales sea demandante o demandada, procesos de nulidades relativas y demás acciones que se deriven del contrato de seguros, demandas contra dictámenes de las Juntas de calificación de Invalidez, demandas por responsabilidad civil y acompañamiento mediante la emisión de conceptos jurídicos en los mismos temas. | G39: 2021-12-01 | H39: 12 | I39: 2022-01-11 | J39: 12 | K39: Invitación directa | L39: SINIESTRO | M39: 120000000 | N39: 120000000 | O39: NO | P39: N/A | Q39: Gerencia de Abastecimiento Estratégico contratacion@positiva.gov.co PBX: (1)6502200 Ext: 10641 | R39: NO | S39: NO | T39: NO | U39: NO | V39: Pública | W39: -Tipo de información Pública-Prestar servicios profesionales especializados en seguros y seguridad social, para la atención y representación de la Compañía en procesos judiciales en los cuales sea demandante o demandada, procesos de nulidades relativas y demás acciones que se deriven del contrato de seguros, demandas contra dictámenes de las Juntas de calificación de Invalidez, demandas por responsabilidad civil y acompañamiento mediante la emisión de conceptos jurídicos en los mismos temas.
A40: SECRETARIA GENERAL Y JURÍDICA | B40: GERENCIA JURÍDICA | C40: NO | E40: 80111607 | F40: Prestar servicios profesionales de abogado especializado en derecho laboral y seguridad social o de seguros, para defender los intereses de Positiva en los procesos judiciales asignados, así como las audiencias de conciliación judicial, prejudicial y extrajudicial en los procesos en que sea parte la Entidad, en las: Sucursales de ATLÁNTICO, BOLIVAR, MAGDALENA CESAR Y GUAJIRA, CÓRDOBA, SUCRE, ANTIOQUIA Y CHOCO. Igualmente para rendir conceptos jurídicos en las áreas especializadas a contratar y prestar la asesoría jurídica que se le solicite. | G40: 2021-12-01 | H40: 12 | I40: 2022-01-11 | J40: 12 | K40: Invitación directa | L40: SINIESTRO | M40: 520000000 | N40: 520000000 | O40: NO | P40: N/A | Q40: Gerencia de Abastecimiento Estratégico contratacion@positiva.gov.co PBX: (1)6502200 Ext: 10641 | R40: NO | S40: NO | T40: NO | U40: NO | V40: Pública | W40: -Tipo de información Pública-Prestar servicios profesionales de abogado especializado en derecho laboral y seguridad social o de seguros, para defender los intereses de Positiva en los procesos judiciales asignados, así como las audiencias de conciliación judicial, prejudicial y extrajudicial en los procesos en que sea parte la Entidad, en las: Sucursales de ATLÁNTICO, BOLIVAR, MAGDALENA CESAR Y GUAJIRA, CÓRDOBA, SUCRE, ANTIOQUIA Y CHOCO. Igualmente para rendir conceptos jurídicos en las áreas especializadas a contratar y prestar la asesoría jurídica que se le solicite.
A41: SECRETARIA GENERAL Y JURÍDICA | B41: GERENCIA JURÍDICA | C41: NO | E41: 80111607 | F41: Prestar servicios profesionales de abogado especializado en derecho laboral y seguridad social o de seguros, para defender los intereses de Positiva en los procesos judiciales asignados, así como las audiencias de conciliación judicial, prejudicial y extrajudicial en los procesos en que sea parte la Entidad, en la Regional Occidente: Sucursales de CALDAS, RISARALDA, VALLE, NARIÑO, CAUCA, QUINDIO, ANTIOQUIA Y CHOCÓ Igualmente para rendir conceptos jurídicos en las áreas especializadas a contratar y prestar la asesoría jurídica que se le solicite. | G41: 2021-12-01 | H41: 12 | I41: 2022-01-11 | J41: 12 | K41: Invitación directa | L41: SINIESTRO | M41: 490000000 | N41: 490000000 | O41: NO | P41: N/A | Q41: Gerencia de Abastecimiento Estratégico contratacion@positiva.gov.co PBX: (1)6502200 Ext: 10641 | R41: NO | S41: NO | T41: NO | U41: NO | V41: Pública | W41: -Tipo de información Pública-Prestar servicios profesionales de abogado especializado en derecho laboral y seguridad social o de seguros, para defender los intereses de Positiva en los procesos judiciales asignados, así como las audiencias de conciliación judicial, prejudicial y extrajudicial en los procesos en que sea parte la Entidad, en la Regional Occidente: Sucursales de CALDAS, RISARALDA, VALLE, NARIÑO, CAUCA, QUINDIO, ANTIOQUIA Y CHOCÓ Igualmente para rendir conceptos jurídicos en las áreas especializadas a contratar y prestar la asesoría jurídica que se le solicite.
A42: SECRETARIA GENERAL Y JURÍDICA | B42: GERENCIA JURÍDICA | C42: SI | E42: 80111607 | F42: Prestación de servicios jurídicos profesionales de abogado para representar los intereses de la Compañía en los procesos judiciales asignado, así como las audiencias de conciliación judicial, prejudicial, en los proceso en que sea parte la Entidad en calidad de demandante o demandado, en las Sucursales de Bogotá, Cundinamarca, Boyacá y Meta. Igualmente rendir conceptos jurídicos en las áreas especializadas a contratar y prestar la asesoría jurídica que se le solicite. | G42: 2021-12-01 | H42: 12 | I42: 2022-01-11 | J42: 12 | K42: Invitación directa | L42: SINIESTRO | M42: 400000000 | N42: 400000000 | O42: NO | P42: N/A | Q42: Gerencia de Abastecimiento Estratégico contratacion@positiva.gov.co PBX: (1)6502200 Ext: 10641 | R42: NO | S42: NO | T42: NO | U42: NO | V42: Pública | W42: -Tipo de información Pública-Prestación de servicios jurídicos profesionales de abogado para representar los intereses de la Compañía en los procesos judiciales asignado, así como las audiencias de conciliación judicial, prejudicial, en los proceso en que sea parte la Entidad en calidad de demandante o demandado, en las Sucursales de Bogotá, Cundinamarca, Boyacá y Meta. Igualmente rendir conceptos jurídicos en las áreas especializadas a contratar y prestar la asesoría jurídica que se le solicite.
A43: SECRETARIA GENERAL Y JURÍDICA | B43: GERENCIA JURÍDICA | C43: NO | E43: 80111607 | F43: Representar a la Compañía en procesos judiciales de carácter laboral, de seguridad social, civil, comercial o administrativa, donde sea demandada o actúe como demandante por temas de riesgos laborales o por seguros de vida; en procesos de recobros por enfermedad laboral por accidente laboral, por responsabilidad civil y determinación de multiafiliaciones a las administradoras de riesgos laborales, vía extraprocesal o judicial; en Acciones Populares y en Conciliaciones administrativas o extrajudiciales. | G43: 2021-12-01 | H43: 12 | I43: 2022-01-11 | J43: 12 | K43: Invitación directa | L43: SINIESTRO | M43: INDETERMINADO | N43: INDETERMINADO | O43: NO | P43: N/A | Q43: Gerencia de Abastecimiento Estratégico contratacion@positiva.gov.co PBX: (1)6502200 Ext: 10641 | R43: NO | S43: NO | T43: NO | U43: NO | V43: Pública | W43: -Tipo de información Pública-Representar a la Compañía en procesos judiciales de carácter laboral, de seguridad social, civil, comercial o administrativa, donde sea demandada o actúe como demandante por temas de riesgos laborales o por seguros de vida; en procesos de recobros por enfermedad laboral por accidente laboral, por responsabilidad civil y determinación de multiafiliaciones a las administradoras de riesgos laborales, vía extraprocesal o judicial; en Acciones Populares y en Conciliaciones administrativas o extrajudiciales.
A44: SECRETARIA GENERAL Y JURÍDICA | B44: GERENCIA JURÍDICA | C44: NO | E44: 80111607 | F44: El contratista se compromete a prestar servicios profesionales como firma de Abogados expertos en Gestión de cobro de cartera y recobros por mora en aportes, mediante el proceso de Cobro Coactivo a favor de Positiva Compañía de Seguros S.A. de las prestaciones asistenciales y/o económicas por mora en aportes y de los aportes a la seguridad social en riesgos laborales que le adeuden a la Compañía, según la asignación de procesos que efectúe la Gerencia Juridica. | G44: 2021-12-01 | H44: 12 | I44: 2022-01-03 | J44: 12 | K44: Invitación directa | L44: CONTRA RECAUDO | M44: INDETERMINADO | N44: INDETERMINADO | O44: NO | P44: N/A | Q44: Gerencia de Abastecimiento Estratégico contratacion@positiva.gov.co PBX: (1)6502200 Ext: 10641 | R44: NO | S44: NO | T44: NO | U44: NO | V44: Pública | W44: -Tipo de información Pública-El contratista se compromete a prestar servicios profesionales como firma de Abogados expertos en Gestión de cobro de cartera y recobros por mora en aportes, mediante el proceso de Cobro Coactivo a favor de Positiva Compañía de Seguros S.A. de las prestaciones asistenciales y/o económicas por mora en aportes y de los aportes a la seguridad social en riesgos laborales que le adeuden a la Compañía, según la asignación de procesos que efectúe la Gerencia Juridica.
A45: SECRETARIA GENERAL Y JURÍDICA | B45: GERENCIA JURÍDICA | C45: NO | E45: 80111607 | F45: EL CONTRATISTA, se compromete con POSITIVA COMPAÑÍA DE SEGUROS S.A., a la prestación de servicios para la investigación, análisis y diagnóstico de fraudes. | G45: 2021-12-01 | H45: 12 | I45: 2022-01-15 | J45: 12 | K45: Invitación directa | L45: SINIESTRO | M45: INDETERMINADO | N45: INDETERMINADO | O45: NO | P45: N/A | Q45: Gerencia de Abastecimiento Estratégico contratacion@positiva.gov.co PBX: (1)6502200 Ext: 10641 | R45: NO | S45: NO | T45: NO | U45: NO | V45: Pública | W45: -Tipo de información Pública-EL CONTRATISTA, se compromete con POSITIVA COMPAÑÍA DE SEGUROS S.A., a la prestación de servicios para la investigación, análisis y diagnóstico de fraudes.
A46: SECRETARIA GENERAL Y JURÍDICA | B46: GERENCIA JURÍDICA | C46: SI | E46: 80111607 | F46: El contratista se compromete con Positiva Compañía de Seguros S.A. a permitir el acceso al portal de red jurista, con la generación de varios usuarios con claves individuales, con acceso interono y externo. | G46: 2021-12-01 | H46: 12 | I46: 2022-01-15 | J46: 12 | K46: Invitación directa | L46: SINIESTRO | M46: 6000000 | N46: 6000000 | O46: NO | P46: N/A | Q46: Gerencia de Abastecimiento Estratégico contratacion@positiva.gov.co PBX: (1)6502200 Ext: 10641 | R46: NO | S46: NO | T46: NO | U46: NO | V46: Pública | W46: -Tipo de información Pública- El contratista se compromete con Positiva Compañía de Seguros S.A. a permitir el acceso al portal de red jurista, con la generación de varios usuarios con claves individuales, con acceso interono y externo.
A47: SECRETARIA GENERAL Y JURÍDICA | B47: GERENCIA JURÍDICA | C47: NO | E47: 80111607 | F47: Prestar servicios profesionales de firma de Abogados Especializados en el área de Derecho Laboral y Seguridad Social, con el propósito acompañar y estructurar un plan estratégico a seguir para el cierre de casos especiales sin que superen cinco (5) mensuales, más relevantes de abuso del derecho, conforme a las necesidades de Positiva Compañía de Seguros S.A., en el cual se definirán las medias a implementar y las acciones a desarrollar. | G47: 2021-12-01 | H47: 12 | I47: 2021-09-20 | J47: 16 | K47: Invitación directa | L47: SINIESTRO | M47: 60690000 | N47: 60690000 | O47: NO | P47: N/A | Q47: Gerencia de Abastecimiento Estratégico contratacion@positiva.gov.co PBX: (1)6502200 Ext: 10641 | R47: NO | S47: NO | T47: NO | U47: NO | V47: Pública | W47: -Tipo de información Pública-Prestar servicios profesionales de firma de Abogados Especializados en el área de Derecho Laboral y Seguridad Social, con el propósito acompañar y estructurar un plan estratégico a seguir para el cierre de casos especiales sin que superen cinco (5) mensuales, más relevantes de abuso del derecho, conforme a las necesidades de Positiva Compañía de Seguros S.A., en el cual se definirán las medias a implementar y las acciones a desarrollar.
A48: SECRETARIA GENERAL Y JURÍDICA | B48: GERENCIA JURÍDICA | C48: NO | E48: 80111607 | F48: Representar los intereses de la Compañía en los procesos judiciales asignados, ante la en la jurisdicción de lo contencioso administrativa, respecto de los medios de control de Nulidad Simple, Nulidad y Restablecimiento del Derecho, lesividad, reparación directa, controversias contractuales, repetición, ejecutivos administrativos, en los procesos en que sea parte la Entidad en calidad de demandante o demandado e igualmente en las demás especialidades tales como civil, laboral y seguridad social. | G48: 2021-12-01 | H48: 12 | I48: 2022-01-11 | J48: 12 | K48: Invitación directa | L48: SINIESTRO | M48: 86000000 | N48: 86000000 | O48: NO | P48: N/A | Q48: Gerencia de Abastecimiento Estratégico contratacion@positiva.gov.co PBX: (1)6502200 Ext: 10641 | R48: NO | S48: NO | T48: NO | U48: NO | V48: Pública | W48: -Tipo de información Pública-Representar los intereses de la Compañía en los procesos judiciales asignados, ante la en la jurisdicción de lo contencioso administrativa, respecto de los medios de control de Nulidad Simple, Nulidad y Restablecimiento del Derecho, lesividad, reparación directa, controversias contractuales, repetición, ejecutivos administrativos, en los procesos en que sea parte la Entidad en calidad de demandante o demandado e igualmente en las demás especialidades tales como civil, laboral y seguridad social.
A49: SECRETARIA GENERAL Y JURÍDICA | B49: GERENCIA JURÍDICA | C49: SI | E49: 80111607 | F49: Prestar servicios profesionales como abogado especializado en derecho comercial, para atender el proceso concursal de liquidación Forzosa Administrativa de la Sociedad FERTILIZANTES COLOMBIANOS S.A. FERTICOL S.A. EN LIQUIDACIÓN, en aras de cumplir con la debida defensa de los intereses de Positiva Compañía de Seguros S.A. | G49: 2021-12-01 | H49: 12 | I49: 2022-01-15 | J49: INDETERMINADO | K49: Invitación directa | L49: CONTRA RECAUDO | M49: INDETERMINADO | N49: INDETERMINADO | O49: NO | P49: N/A | Q49: Gerencia de Abastecimiento Estratégico contratacion@positiva.gov.co PBX: (1)6502200 Ext: 10641 | R49: NO | S49: NO | T49: NO | U49: NO | V49: Pública | W49: -Tipo de información Pública-Prestar servicios profesionales como abogado especializado en derecho comercial, para atender el proceso concursal de liquidación Forzosa Administrativa de la Sociedad FERTILIZANTES COLOMBIANOS S.A. FERTICOL S.A. EN LIQUIDACIÓN, en aras de cumplir con la debida defensa de los intereses de Positiva Compañía de Seguros S.A.
A50: NEGOCIOS | B50: Riesgos laborales | C50: SI | D50: C35022022 | E50: 80141625 | F50: Suministro de productos y/o servicios de acuerdo con los requerimientos, cantidades y precios demandados por la compañía, para satisfacer las necesidades referentes a la entrega de incentivos a la gestión comercial | G50: 2022-01-01 | H50: 1 | I50: 2022-12-31 | J50: 12.13333333 | K50: Invitación directa | L50: Gasto Administrativo | M50: 50780208 | N50: 50780208 | O50: SI | P50: APROBADA | Q50: Gerencia de Abastecimiento Estratégico contratacion@positiva.gov.co PBX: (1)6502200 Ext: 10641 | R50: SI | S50: SI | T50: SI | U50: SI | V50: Pública clasificada | W50: C35022022-Tipo de información Pública clasificada-Suministro de productos y/o servicios de acuerdo con los requerimientos, cantidades y precios demandados por la compañía, para satisfacer las necesidades referentes a la entrega de incentivos a la gestión comercial
A51: NEGOCIOS | B51: Mercadeo y Comunicaciones | C51: NO | D51: C35032022 C35212022 C35312022 C35322022 C35332022 C35342022 C35362022 C35372022 C35382022 | E51: 82101800, 82101701, 82101801, 82101802, 82101900, 82101901, 82101902, 82101903, 82101904, 82101905, 82110000, 82111704, 82111900, 82111801, 82111901, 82111904, 80141607, 80141611, 80141612, 80141613, 80141614, 80141616, 80141618, 80141623, 80141624, 80141625, 80141626, 80141700, 80141902, 80150000, 78102205, 14111608, 86101808, 82100000, 82101600, 80141500, 80141501, 80141509,80141600 | F51: EL CONTRATISTA, se compromete con POSITIVA COMPAÑÍA DE SEGUROS S.A., a la prestación de servicios para la Planeación e Implementación de estrategias de mercadeo y comunicaciones, las cuales se ejecutarán por medio de las diversas actividades y disciplinas del marketing, endomarketing y comunicaciones, orientadas a fortalecer la posición de Positiva Compañía de Seguros S.A. en el mercado y al interior de la compañía, adicionalmente, gestionará investigaciones de mercado y consultorías que se requieran para la compañía. | G51: 2022-04-01 | H51: 4 | I51: 2022-12-31 | J51: 9.133333333 | K51: Invitación pública | L51: Gasto Administrativo | M51: 2454553459 | N51: 2454553459 | O51: NO | Q51: Gerencia de Abastecimiento Estratégico contratacion@positiva.gov.co PBX: (1)6502200 Ext: 10641 | R51: SI | S51: SI | T51: NA | U51: SI | V51: Pública clasificada | W51: C35032022 C35212022 C35312022 C35322022 C35332022 C35342022 C35362022 C35372022 C35382022-Tipo de información Pública clasificada- EL CONTRATISTA, se compromete con POSITIVA COMPAÑÍA DE SEGUROS S.A., a la prestación de servicios para la Planeación e Implementación de estrategias de mercadeo y comunicaciones, las cuales se ejecutarán por medio de las diversas actividades y disciplinas del marketing, endomarketing y comunicaciones, orientadas a fortalecer la posición de Positiva Compañía de Seguros S.A. en el mercado y al interior de la compañía, adicionalmente, gestionará investigaciones de mercado y consultorías que se requieran para la compañía.
A52: NEGOCIOS | B52: Canales | C52: NO | D52: C35042022 | E52: 86132001 | F52: Capacitación y entrenamiento Fuerza Comercial | G52: 2022-08-01 | H52: 8 | I52: 2022-12-31 | J52: 5.066666667 | K52: Invitación directa | L52: Gasto Administrativo | M52: 0 | N52: 0 | O52: NO | Q52: Gerencia de Abastecimiento Estratégico contratacion@positiva.gov.co PBX: (1)6502200 Ext: 10641 | R52: SI | S52: SI | T52: NA | U52: SI | V52: Pública clasificada | W52: C35042022-Tipo de información Pública clasificada-Capacitación y entrenamiento Fuerza Comercial
A53: NEGOCIOS | B53: Canales | C53: SI | D53: C35052022 | E53: 80141625 | F53: Suministro de productos y/o servicios de acuerdo con los requerimientos, cantidades y precios demandados por la compañía, para satisfacer las necesidades referentes a la entrega de incentivos a la gestión comercial | G53: 2022-01-01 | H53: 1 | I53: 2022-12-31 | J53: 12.13333333 | K53: Invitación directa | L53: Gasto Administrativo | M53: 94770000 | N53: 94770000 | O53: SI | P53: APROBADA | Q53: Gerencia de Abastecimiento Estratégico contratacion@positiva.gov.co PBX: (1)6502200 Ext: 10641 | R53: SI | S53: SI | T53: SI | U53: SI | V53: Pública clasificada | W53: C35052022-Tipo de información Pública clasificada-Suministro de productos y/o servicios de acuerdo con los requerimientos, cantidades y precios demandados por la compañía, para satisfacer las necesidades referentes a la entrega de incentivos a la gestión comercial
A54: NEGOCIOS | B54: Canales | C54: NO | D54: C35062022 | E54: 86101804 | F54: Prestación de Servicios, Capacitaciones virtuales para la estructura Comercial e Intermediarios | G54: 2022-01-01 | H54: 1 | I54: 2022-12-31 | J54: 12.13333333 | K54: Invitación directa | L54: Gasto Administrativo | M54: 105300000 | N54: 105300000 | O54: NO | Q54: Gerencia de Abastecimiento Estratégico contratacion@positiva.gov.co PBX: (1)6502200 Ext: 10641 | R54: SI | S54: NO | T54: SI | U54: SI | V54: Pública clasificada | W54: C35062022-Tipo de información Pública clasificada-Prestación de Servicios, Capacitaciones virtuales para la estructura Comercial e Intermediarios
A55: NEGOCIOS | B55: Canales | C55: NO | D55: C35072022 | E55: 90000000 | F55: Prestación de Servicios - Viajes comerciales - Tiquetes | G55: 2022-01-01 | H55: 1 | I55: 2022-12-31 | J55: 12.13333333 | K55: Invitación cerrada | L55: Gasto Administrativo | M55: 120000000 | N55: 120000000 | O55: SI | P55: APROBADA | Q55: Gerencia de Abastecimiento Estratégico contratacion@positiva.gov.co PBX: (1)6502200 Ext: 10641 | R55: SI | S55: NO | T55: NO | U55: SI | V55: Pública clasificada | W55: C35072022-Tipo de información Pública clasificada-Prestación de Servicios - Viajes comerciales - Tiquetes
A56: NEGOCIOS | B56: Canales | C56: SI | D56: C35092022 | E56: 80141600 | F56: Prestación de servicios Outsorcing de personal | G56: 2022-01-01 | H56: 1 | I56: 2022-09-30 | J56: 9.066666667 | K56: Invitación directa | L56: Gasto Administrativo | M56: 4714861730 | N56: 4714861730 | O56: SI | P56: APROBADA | Q56: Gerencia de Abastecimiento Estratégico contratacion@positiva.gov.co PBX: (1)6502200 Ext: 10641 | R56: SI | S56: SI | T56: NA | U56: SI | V56: Pública clasificada | W56: C35092022-Tipo de información Pública clasificada-Prestación de servicios Outsorcing de personal
A57: NEGOCIOS | B57: Canales | C57: SI | D57: C35122022 | E57: 43232303 | F57: Prestación de servicios para la habilitación de suscripción Salesforce.com, Marketing Cloud, así como los Servicios de Soporte Tecnológico y capacitación funcional. | G57: 2022-01-01 | H57: 1 | I57: 2022-12-31 | J57: 12.13333333 | K57: Invitación directa | L57: Gasto Administrativo | M57: 670146211 | N57: 670146211 | O57: SI | P57: APROBADA | Q57: Gerencia de Abastecimiento Estratégico contratacion@positiva.gov.co PBX: (1)6502200 Ext: 10641 | R57: SI | S57: SI | T57: SI | U57: SI | V57: Pública clasificada | W57: C35122022-Tipo de información Pública clasificada-Prestación de servicios para la habilitación de suscripción Salesforce.com, Marketing Cloud, así como los Servicios de Soporte Tecnológico y capacitación funcional.
A58: NEGOCIOS | B58: Canales | C58: SI | D58: C35132022 | E58: 80141500 | F58: Adquisición de estudio de la calidad del servicio de las ARL | G58: 2022-01-29 | H58: 1 | I58: 2022-06-30 | J58: 5.066666667 | K58: Invitación directa | L58: Gasto Administrativo | M58: 14648953 | N58: 14648953 | O58: SI | P58: APROBADA | Q58: Gerencia de Abastecimiento Estratégico contratacion@positiva.gov.co PBX: (1)6502200 Ext: 10641 | R58: SI | S58: SI | T58: NA | U58: SI | V58: Pública clasificada | W58: C35132022-Tipo de información Pública clasificada-Adquisición de estudio de la calidad del servicio de las ARL
A59: NEGOCIOS | B59: Canales | C59: NO | D59: C35142022 | E59: 80141500 | F59: Contratar los servicios de una agencia de investigación de mercado, para realizar investigaciones que permitan recolectar información de interés para la compañía | G59: 2022-07-01 | H59: 7 | I59: 2022-12-31 | J59: 6.1 | K59: Invitación directa | L59: Gasto Administrativo | M59: 14197005 | N59: 14197005 | O59: NO | Q59: Gerencia de Abastecimiento Estratégico contratacion@positiva.gov.co PBX: (1)6502200 Ext: 10641 | R59: SI | S59: SI | T59: NA | U59: NO | V59: Pública | W59: C35142022-Tipo de información Pública-Contratar los servicios de una agencia de investigación de mercado, para realizar investigaciones que permitan recolectar información de interés para la compañía
A60: NEGOCIOS | B60: Canales | C60: NO | D60: C35152022 | E60: 82101800, 82101701, 82101801, 82101802, 82101900, 82101901, 82101902, 82101903, 82101904, 82101905, 82110000, 82111704, 82111900, 82111801, 82111901, 82111904, 80141607, 80141611, 80141612, 80141613, 80141614, 80141616, 80141618, 80141623, 80141624, 80141625, 80141626, 80141700, 80141902, 80150000, 78102205, 14111608, 86101808, 82100000, 82101600, 80141500, 80141501, 80141509,80141600 | F60: Prestación de servicios para la Planeación e Implementación de estrategias de mercadeo y comunicaciones, las cuales se ejecutarán por medio de las diversas actividades y disciplinas de marketing, endomarketing y comunicaciones, orientadas a fortalecer la posición de Positiva Compañía de Seguros en el mercado y al interior de la compañía | G60: 2022-07-01 | H60: 7 | I60: 2022-12-31 | J60: 6.1 | K60: Invitación directa | L60: Gasto Administrativo | M60: 126360000 | N60: 126360000 | O60: NO | Q60: Gerencia de Abastecimiento Estratégico contratacion@positiva.gov.co PBX: (1)6502200 Ext: 10641 | R60: SI | S60: SI | T60: NA | U60: SI | V60: Pública clasificada | W60: C35152022-Tipo de información Pública clasificada-Prestación de servicios para la Planeación e Implementación de estrategias de mercadeo y comunicaciones, las cuales se ejecutarán por medio de las diversas actividades y disciplinas de marketing, endomarketing y comunicaciones, orientadas a fortalecer la posición de Positiva Compañía de Seguros en el mercado y al interior de la compañía
A61: NEGOCIOS | B61: Canales | C61: NO | D61: C35162022 | E61: 80141607 | F61: Prestación de servicios Plan de Formación | G61: 2022-09-01 | H61: 9 | I61: 2022-10-31 | J61: 2 | K61: Invitación cerrada | L61: Gasto Administrativo | M61: 954005884 | N61: 954005884 | O61: NO | Q61: Gerencia de Abastecimiento Estratégico contratacion@positiva.gov.co PBX: (1)6502200 Ext: 10641 | R61: NO | S61: SI | T61: NA | U61: SI | V61: Pública clasificada | W61: C35162022-Tipo de información Pública clasificada-Prestación de servicios Plan de Formación
A62: NEGOCIOS | B62: Canales | C62: SI | D62: C35172022 | E62: 14111608 | F62: Suministro de reconocimientos e Incentivos para la fuerza comercial | G62: 2022-01-01 | H62: 1 | I62: 2022-12-31 | J62: 12.13333333 | K62: Invitación directa | L62: Gasto Administrativo | M62: 47385000 | N62: 47385000 | O62: SI | P62: APROBADA | Q62: Gerencia de Abastecimiento Estratégico contratacion@positiva.gov.co PBX: (1)6502200 Ext: 10641 | R62: NO | S62: SI | T62: NA | U62: N/A | V62: Pública | W62: C35172022-Tipo de información Pública-Suministro de reconocimientos e Incentivos para la fuerza comercial
A63: NEGOCIOS | B63: Experiencia del cliente | C63: NO | D63: C35222022 | E63: 86101804 | F63: Prestación de Servicios / Desarrollar el Programa de Educación Financiera dirigido a los trabajadores de las empresas afiliadas a Riesgos Laborales, Tomadores de Pólizas de Vida y de otros ramos y/o Clientes potenciales, proveedores, intermediarios y Usuarios en general a través de webinars, talleres y/o conferencias presenciales y/o virtuales, generación de piezas y contenidos para el programa, utilizando el contenido y la metodología definida por POSITIVA. | G63: 2022-01-25 | H63: 1 | I63: 2022-12-31 | J63: 11.33333333 | K63: Invitación cerrada | L63: Gasto Administrativo | M63: 96760170 | N63: 96760170 | O63: SI | P63: APROBADA | Q63: Gerencia de Abastecimiento Estratégico contratacion@positiva.gov.co PBX: (1)6502200 Ext: 10641 | R63: NO | S63: SI | T63: NA | U63: NO | V63: Pública | W63: C35222022-Tipo de información Pública-Prestación de Servicios / Desarrollar el Programa de Educación Financiera dirigido a los trabajadores de las empresas afiliadas a Riesgos Laborales, Tomadores de Pólizas de Vida y de otros ramos y/o Clientes potenciales, proveedores, intermediarios y Usuarios en general a través de webinars, talleres y/o conferencias presenciales y/o virtuales, generación de piezas y contenidos para el programa, utilizando el contenido y la metodología definida por POSITIVA.
A64: NEGOCIOS | B64: Experiencia del cliente | C64: NO | D64: C35232022 | E64: 81131504 | F64: Prestar los servicios profesionales con plena autonomía técnica y administrativa para apoyar en la medición de la satisfacción de los clientes e intermediarios con el servicio brindado por POSITIVA durante el 2022 y la percepción corporativa de los grupos de interés de la Compañía, conforme a la Ley 1328 de 2009 de protección al consumidor financiero y al Manual de Sistema de Atención al Consumidor (SAC) | G64: 2022-09-01 | H64: 9 | I64: 2022-12-31 | J64: 4.033333333 | K64: Invitación directa | L64: Gasto Administrativo | M64: 329790913 | N64: 329790913 | O64: NO | Q64: Gerencia de Abastecimiento Estratégico contratacion@positiva.gov.co PBX: (1)6502200 Ext: 10641 | R64: NO | S64: SI | T64: NA | U64: SI | V64: Pública clasificada | W64: C35232022-Tipo de información Pública clasificada-Prestar los servicios profesionales con plena autonomía técnica y administrativa para apoyar en la medición de la satisfacción de los clientes e intermediarios con el servicio brindado por POSITIVA durante el 2022 y la percepción corporativa de los grupos de interés de la Compañía, conforme a la Ley 1328 de 2009 de protección al consumidor financiero y al Manual de Sistema de Atención al Consumidor (SAC)
A65: NEGOCIOS | B65: Experiencia del cliente | C65: SI | D65: C35252022 | E65: 80141600 | F65: Prestación de servicios Outsorcing de personal | G65: 2022-01-01 | H65: 1 | I65: 2022-12-31 | J65: 12.13333333 | K65: Invitación directa | L65: Gasto Administrativo | M65: 285138270 | N65: 285138270 | O65: SI | P65: APROBADA | Q65: Gerencia de Abastecimiento Estratégico contratacion@positiva.gov.co PBX: (1)6502200 Ext: 10641 | R65: SI | S65: SI | T65: NA | U65: SI | V65: Pública clasificada | W65: C35252022-Tipo de información Pública clasificada-Prestación de servicios Outsorcing de personal
A66: NEGOCIOS | B66: Experiencia del cliente | C66: NO | D66: C35272022 | E66: 80111616 | F66: Prestación de Servicios / Contar con el Defensor del Consumidor Financiero | G66: 2022-07-01 | H66: 7 | I66: 2022-12-31 | J66: 6.1 | K66: Invitación directa | L66: Gasto Administrativo | M66: 78276664 | N66: 78276664 | O66: SI | P66: APROBADA | Q66: Gerencia de Abastecimiento Estratégico contratacion@positiva.gov.co PBX: (1)6502200 Ext: 10641 | R66: NO | S66: SI | T66: NA | U66: NO | V66: Pública | W66: C35272022-Tipo de información Pública-Prestación de Servicios / Contar con el Defensor del Consumidor Financiero
A67: NEGOCIOS | B67: Experiencia del cliente | C67: NO | D67: C35292022 | E67: 14111608 | F67: Prestación de Servicios / Contar con un Programa de Fidelización y Experiencia en los diferentes momentos de verdad | G67: 2022-08-01 | H67: 8 | I67: 2022-12-31 | J67: 5.066666667 | K67: Invitación directa | L67: Gasto Administrativo | M67: 53560000 | N67: 53560000 | O67: NO | Q67: Gerencia de Abastecimiento Estratégico contratacion@positiva.gov.co PBX: (1)6502200 Ext: 10641 | R67: NO | S67: SI | T67: NA | U67: SI | V67: Pública clasificada | W67: C35292022-Tipo de información Pública clasificada-Prestación de Servicios / Contar con un Programa de Fidelización y Experiencia en los diferentes momentos de verdad
A68: NEGOCIOS | B68: Experiencia del cliente | C68: NO | D68: C35302022 | E68: 81131504 | F68: Prestación de Servicios / Realizar Medición de Satisfacción y Experiencia en tiempo real | G68: 2022-08-01 | H68: 8 | I68: 2022-12-31 | J68: 5.066666667 | K68: Invitación directa | L68: Gasto Administrativo | M68: 40224848 | N68: 40224848 | O68: NO | Q68: Gerencia de Abastecimiento Estratégico contratacion@positiva.gov.co PBX: (1)6502200 Ext: 10641 | R68: NO | S68: SI | T68: NA | U68: SI | V68: Pública clasificada | W68: C35302022-Tipo de información Pública clasificada-Prestación de Servicios / Realizar Medición de Satisfacción y Experiencia en tiempo real
A69: NEGOCIOS | B69: Vida | C69: NO | D69: C35392022 | E69: 82101500 | F69: Renovación póliza Magisterio contratada por intermedio de LYM | G69: 2022-07-01 | H69: 7 | I69: 2022-12-31 | J69: 6.1 | K69: Invitación directa | L69: Gasto Administrativo | M69: 15774450 | N69: 15774450 | O69: NO | Q69: Gerencia de Abastecimiento Estratégico contratacion@positiva.gov.co PBX: (1)6502200 Ext: 10641 | R69: SI | S69: SI | T69: NA | U69: SI | V69: Pública clasificada | W69: C35392022-Tipo de información Pública clasificada-Renovación póliza Magisterio contratada por intermedio de LYM
A70: NEGOCIOS | B70: Vida | C70: NO | D70: C35402022 | E70: 82101500 | F70: Impresión papelería negocios renovados para fideliza los clientes de Positiva | G70: 2022-07-01 | H70: 7 | I70: 2022-12-31 | J70: 6.1 | K70: Invitación directa | L70: Gasto Administrativo | M70: 20420000 | N70: 20420000 | O70: NO | Q70: Gerencia de Abastecimiento Estratégico contratacion@positiva.gov.co PBX: (1)6502200 Ext: 10641 | R70: NO | S70: SI | T70: NA | U70: SI | V70: Pública clasificada | W70: C35402022-Tipo de información Pública clasificada-Impresión papelería negocios renovados para fideliza los clientes de Positiva
A71: NEGOCIOS | B71: Vida | C71: NO | D71: C35422022 | E71: 80141600, 80141606, 80141613 | F71: Prestación de servicios de Promoción y Prevención para implementar, mejorar y/o mantener actividades de asesoría, asistencia técnica y de formación en Seguridad y Salud en el Trabajo, del Plan Básico en los programas (Estructura Empresarial, Preparación y Atención de Emergencias, Promoción y Prevención en Salud, Protección Colectiva e individual), Plan Avanzado en los Programas (Gestión de Incidentes y accidentes de Trabajo, Gestión de enfermedad laboral), Plan Especializado (Programa de Vigilancia Epidemiológica), Plan Gestión Integral (Sistemas integrados de Gestión) de la estrategia CREA del modelo de gestión POSITIVA SUMA, de acuerdo a los planes de trabajo pactados con las empresas y cargados en el aplicativo GESTPOS, para empresas afiliadas a Positiva Compañía de Seguros Sucursales Antioquia y Chocó. / Actividades de formación en prevención de accidentes, para estudiantes de las empresas clientes, de Seguros de Vida, especialmente MUNICIPIO DE MEDELLÍN y la empresa ITM de la Sucursal Antioquia de la Zona Antioquia | G71: 2022-09-01 | H71: 9 | I71: 2022-12-31 | J71: 4.033333333 | K71: Invitación directa | L71: Gasto Administrativo | M71: 122346654 | N71: 122346654 | O71: NO | Q71: Gerencia de Abastecimiento Estratégico contratacion@positiva.gov.co PBX: (1)6502200 Ext: 10641 | R71: SI | S71: SI | T71: NA | U71: SI | V71: Pública clasificada | W71: C35422022-Tipo de información Pública clasificada-Prestación de servicios de Promoción y Prevención para implementar, mejorar y/o mantener actividades de asesoría, asistencia técnica y de formación en Seguridad y Salud en el Trabajo, del Plan Básico en los programas (Estructura Empresarial, Preparación y Atención de Emergencias, Promoción y Prevención en Salud, Protección Colectiva e individual), Plan Avanzado en los Programas (Gestión de Incidentes y accidentes de Trabajo, Gestión de enfermedad laboral), Plan Especializado (Programa de Vigilancia Epidemiológica), Plan Gestión Integral (Sistemas integrados de Gestión) de la estrategia CREA del modelo de gestión POSITIVA SUMA, de acuerdo a los planes de trabajo pactados con las empresas y cargados en el aplicativo GESTPOS, para empresas afiliadas a Positiva Compañía de Seguros Sucursales Antioquia y Chocó. / Actividades de formación en prevención de accidentes, para estudiantes de las empresas clientes, de Seguros de Vida, especialmente MUNICIPIO DE MEDELLÍN y la empresa ITM de la Sucursal Antioquia de la Zona Antioquia
A72: NEGOCIOS | B72: Vida | C72: NO | D72: C35442022 | E72: 14111608 | F72: Incentivar la gestión comercial a partir del cumplimientos de metas | G72: 2022-01-18 | H72: 1 | I72: 2022-12-31 | J72: 11.56666667 | K72: Invitación directa | L72: Gasto Administrativo | M72: 126212433 | N72: 126212433 | O72: NO | Q72: Gerencia de Abastecimiento Estratégico contratacion@positiva.gov.co PBX: (1)6502200 Ext: 10641 | R72: NO | S72: SI | T72: NA | U72: SI | V72: Pública clasificada | W72: C35442022-Tipo de información Pública clasificada-Incentivar la gestión comercial a partir del cumplimientos de metas
A73: NEGOCIOS | B73: Vida | C73: NO | D73: C35452022 | E73: 14111514- 55101509 | F73: Suministro de material impreso para la divulgación de mensajes de promoción y prevención de accidentes en la póliza de Accidentes Personales de la Universidad Nacional | G73: 2022-07-01 | H73: 7 | I73: 2022-12-31 | J73: 6.1 | K73: Invitación directa | L73: Gasto Administrativo | M73: 84380346 | N73: 84380346 | O73: NO | Q73: Gerencia de Abastecimiento Estratégico contratacion@positiva.gov.co PBX: (1)6502200 Ext: 10641 | R73: SI | S73: SI | T73: NA | U73: SI | V73: Pública clasificada | W73: C35452022-Tipo de información Pública clasificada-Suministro de material impreso para la divulgación de mensajes de promoción y prevención de accidentes en la póliza de Accidentes Personales de la Universidad Nacional
A74: NEGOCIOS | B74: Vida | C74: NO | D74: C35462022 | E74: 83121700-83121703-82101903 | F74: Manejo de redes sociales de la Universidad Nacional que incluyen campañas para controlar la accidentalidad y prevención, vida saludable, valores y actividades | G74: 2022-01-18 | H74: 1 | I74: 2022-12-31 | J74: 11.56666667 | K74: Invitación directa | L74: Gasto Administrativo | M74: 66000000 | N74: 66000000 | O74: NO | Q74: Gerencia de Abastecimiento Estratégico contratacion@positiva.gov.co PBX: (1)6502200 Ext: 10641 | R74: SI | S74: SI | T74: NA | U74: SI | V74: Pública clasificada | W74: C35462022-Tipo de información Pública clasificada-Manejo de redes sociales de la Universidad Nacional que incluyen campañas para controlar la accidentalidad y prevención, vida saludable, valores y actividades
A75: NEGOCIOS | B75: Vida | C75: NO | D75: C35482022 | E75: 24141704, 821215 | F75: Material impreso compromiso comercial Banco Agrario Licitacion Pública No (No. SEG2021–01-DG ) | G75: 2022-01-18 | H75: 1 | I75: 2022-12-31 | J75: 11.56666667 | K75: Invitación directa | L75: Gasto Administrativo | M75: 300000000 | N75: 300000000 | O75: NO | Q75: Gerencia de Abastecimiento Estratégico contratacion@positiva.gov.co PBX: (1)6502200 Ext: 10641 | R75: NO | S75: SI | T75: NA | U75: SI | V75: Pública clasificada | W75: C35482022-Tipo de información Pública clasificada-Material impreso compromiso comercial Banco Agrario Licitacion Pública No (No. SEG2021–01-DG )
A76: Operaciones | B76: Gcia. Recaudo y Cartera | C76: NO | D76: C450142022 | E76: 80121610 | F76: "Prestación de Servicios de gestion de cobro en etapa persuasiva y prejuridica de firmas externas para Cartera ARL, y recobros por Mora a la Fecha del evento por GESTION DE COBRANZA CARTERA APORTES CONCILIACION" | G76: 2022-06-01 | H76: 6 | I76: 2023-05-31 | J76: 12 | K76: Invitación directa | L76: GastosAdministrativos | M76: 5064905235 | N76: 2351496667 | O76: SI | Q76: Gerencia de Abastecimiento Estratégico contratacion@positiva.gov.co PBX: (1)6502200 Ext: 10641 | R76: SI | S76: SI | T76: NO | U76: SI | V76: Pública clasificada | W76: C450142022-Tipo de información Pública clasificada-"Prestación de Servicios de gestion de cobro en etapa persuasiva y prejuridica de firmas externas para Cartera ARL, y recobros por Mora a la Fecha del evento por GESTION DE COBRANZA CARTERA APORTES CONCILIACION"
A77: Operaciones | B77: Gcia. Recaudo y Cartera | C77: NO | D77: C450152022 | E77: 80121610 | F77: "Prestación de Servicios de gestion de cobro en etapa persuasiva y prejuridica de firmas externas para Cartera ARL, y recobros por Mora a la Fecha del evento por GESTION DE COBRANZA CARTERA APORTES CONCILIACION" | G77: 2022-06-01 | H77: 6 | I77: 2023-05-31 | J77: 12 | K77: Invitación directa | L77: GastosAdministrativos | M77: =+N77*2 -> 3966000000 | N77: 1983000000 | O77: SI | Q77: Gerencia de Abastecimiento Estratégico contratacion@positiva.gov.co PBX: (1)6502200 Ext: 10641 | R77: SI | S77: SI | T77: NO | U77: SI | V77: Pública clasificada | W77: C450152022-Tipo de información Pública clasificada-"Prestación de Servicios de gestion de cobro en etapa persuasiva y prejuridica de firmas externas para Cartera ARL, y recobros por Mora a la Fecha del evento por GESTION DE COBRANZA CARTERA APORTES CONCILIACION"
A78: Operaciones | B78: Gcia. Recaudo y Cartera | C78: NO | D78: C450162022 | E78: 80121610 | F78: Prestación de Servicios de gestion servicios de gestion de cobro de cartera RAMO DE PERSONAS | G78: 2022-06-01 | H78: 6 | I78: 2023-05-31 | J78: 12 | K78: Invitación directa | L78: GastosAdministrativos | M78: 101363889 | N78: 44982000 | O78: SI | Q78: Gerencia de Abastecimiento Estratégico contratacion@positiva.gov.co PBX: (1)6502200 Ext: 10641 | R78: SI | S78: SI | T78: NO | U78: SI | V78: Pública clasificada | W78: C450162022-Tipo de información Pública clasificada-Prestación de Servicios de gestion servicios de gestion de cobro de cartera RAMO DE PERSONAS
A79: Operaciones | B79: Gcia. Recaudo y Cartera | C79: NO | D79: C450172022 | E79: 80121610 | F79: Administrador de Cartera | G79: 2022-10-01 | H79: 10 | I79: 2023-09-30 | J79: 12 | K79: Invitación directa | L79: GastosAdministrativos | M79: 200000000 | N79: 50000000 | O79: SI | Q79: Gerencia de Abastecimiento Estratégico contratacion@positiva.gov.co PBX: (1)6502200 Ext: 10641 | R79: SI | S79: SI | T79: NO | U79: SI | V79: Pública clasificada | W79: C450172022-Tipo de información Pública clasificada-Administrador de Cartera
A80: Operaciones | B80: Gcia. Recaudo y Cartera | C80: SI | D80: NA | E80: 80121610 | F80: Prestación de Servicios de Compra de registros al operador de información por datos Seguridad social sistema de Riesgos laborales. | G80: 2022-07-01 | H80: 7 | I80: 2023-06-30 | J80: 12 | K80: Invitación directa | L80: GastosAdministrativos | M80: 10338491160 | N80: 4894215765 | O80: NO | Q80: Gerencia de Abastecimiento Estratégico contratacion@positiva.gov.co PBX: (1)6502200 Ext: 10641 | R80: SI | S80: SI | T80: NO | U80: SI | V80: Pública clasificada | W80: NA-Tipo de información Pública clasificada-Prestación de Servicios de Compra de registros al operador de información por datos Seguridad social sistema de Riesgos laborales.
A81: Operaciones | B81: Gcia. Recaudo y Cartera | C81: SI | D81: NA | E81: 80121610 | F81: Prestación de Servicios de Compra de registros al operador de información por datos Seguridad social sistema de Riesgos laborales. | G81: 2022-07-01 | H81: 7 | I81: 2023-06-30 | J81: 12 | K81: Invitación directa | L81: GastosAdministrativos | M81: =+N81 -> 290889369 | N81: 290889369 | O81: NO | Q81: Gerencia de Abastecimiento Estratégico contratacion@positiva.gov.co PBX: (1)6502200 Ext: 10641 | R81: SI | S81: SI | T81: NO | U81: SI | V81: Pública clasificada | W81: NA-Tipo de información Pública clasificada-Prestación de Servicios de Compra de registros al operador de información por datos Seguridad social sistema de Riesgos laborales.
A82: Operaciones | B82: Gcia. Recaudo y Cartera | C82: SI | D82: C45122022 | E82: 80121610 | F82: Prestar sus servicios profesionales a la Gerencia de Recaudo y Cartera de POSITIVA en la revisión y conciliación de la información registrada en los diferentes aplicativos de los procesos de recaudo, cartera y liquidación de comisiones a fin de identificar inconsistencias y realizar los ajustes a que haya lugar; así como a apoyar en la legalización y reporte de los saldos pendientes por recuperar y/o los saldos pendientes por pagar en las cuentas corrientes de los intermediarios. | G82: 2022-01-01 | H82: 1 | I82: 2022-12-31 | J82: 12 | K82: Invitación directa | L82: GastosAdministrativos | M82: =+N82 -> 124032074 | N82: 124032074 | O82: NO | Q82: Gerencia de Abastecimiento Estratégico contratacion@positiva.gov.co PBX: (1)6502200 Ext: 10641 | R82: SI | S82: SI | T82: NO | U82: SI | V82: Pública clasificada | W82: C45122022-Tipo de información Pública clasificada-Prestar sus servicios profesionales a la Gerencia de Recaudo y Cartera de POSITIVA en la revisión y conciliación de la información registrada en los diferentes aplicativos de los procesos de recaudo, cartera y liquidación de comisiones a fin de identificar inconsistencias y realizar los ajustes a que haya lugar; así como a apoyar en la legalización y reporte de los saldos pendientes por recuperar y/o los saldos pendientes por pagar en las cuentas corrientes de los intermediarios.
A83: Operaciones | B83: Gcia. Recaudo y Cartera | C83: SI | D83: C45092022 | E83: 80121610 | F83: Prestar sus servicios profesionales a la Gerencia de Recaudo y Cartera de POSITIVA en la revisión y conciliación de la información registrada en los diferentes aplicativos de los procesos de recaudo, cartera y liquidación de comisiones a fin de identificar inconsistencias y realizar los ajustes a que haya lugar; así como a apoyar en la legalización y reporte de los saldos pendientes por recuperar y/o los saldos pendientes por pagar en las cuentas corrientes de los intermediarios. | G83: 2022-01-01 | H83: 1 | I83: 2022-12-31 | J83: 12 | K83: Invitación directa | L83: GastosAdministrativos | M83: 124032074 | N83: 124032074 | O83: NO | Q83: Gerencia de Abastecimiento Estratégico contratacion@positiva.gov.co PBX: (1)6502200 Ext: 10641 | R83: SI | S83: SI | T83: NO | U83: SI | V83: Pública clasificada | W83: C45092022-Tipo de información Pública clasificada-Prestar sus servicios profesionales a la Gerencia de Recaudo y Cartera de POSITIVA en la revisión y conciliación de la información registrada en los diferentes aplicativos de los procesos de recaudo, cartera y liquidación de comisiones a fin de identificar inconsistencias y realizar los ajustes a que haya lugar; así como a apoyar en la legalización y reporte de los saldos pendientes por recuperar y/o los saldos pendientes por pagar en las cuentas corrientes de los intermediarios.
A84: Operaciones | B84: Gcia. Recaudo y Cartera | C84: SI | D84: C45102022 | E84: 80121610 | F84: Prestar servicios a la Gerencia de Afiliaciones y Novedades y a la Gerencia de Recaudo y Cartera de la Vicepresidencia de Operaciones de POSITIVA S.A en los asuntos administrativos que les competan en materia de afiliaciones, novedades, recaudos, cartera y recobros, así como en los temas específicos de naturaleza análoga que requiera directamente la Vicepresidencia de Operaciones. | G84: 2022-01-01 | H84: 1 | I84: 2022-12-31 | J84: 12 | K84: Invitación directa | L84: GastosAdministrativos | M84: 150790197 | N84: 150790197 | O84: NO | Q84: Gerencia de Abastecimiento Estratégico contratacion@positiva.gov.co PBX: (1)6502200 Ext: 10641 | R84: SI | S84: SI | T84: NO | U84: SI | V84: Pública clasificada | W84: C45102022-Tipo de información Pública clasificada-Prestar servicios a la Gerencia de Afiliaciones y Novedades y a la Gerencia de Recaudo y Cartera de la Vicepresidencia de Operaciones de POSITIVA S.A en los asuntos administrativos que les competan en materia de afiliaciones, novedades, recaudos, cartera y recobros, así como en los temas específicos de naturaleza análoga que requiera directamente la Vicepresidencia de Operaciones.
A85: Operaciones | B85: Gcia. Afiliaciones y Novedades | C85: SI | D85: C45112022 | E85: 80121610 | F85: Prestar sus servicios a la Gerencia de Afiliaciones y Novedades en la revisión, validación, conciliación y gestión de los procesos de mantenimiento de pólizas de los ramos de vida individual y colectivo. | G85: 2022-01-01 | H85: 1 | I85: 2022-12-31 | J85: 12 | K85: Invitación directa | L85: GastosAdministrativos | M85: 52507822 | N85: 52507822 | O85: NO | Q85: Gerencia de Abastecimiento Estratégico contratacion@positiva.gov.co PBX: (1)6502200 Ext: 10641 | R85: SI | S85: SI | T85: NO | U85: SI | V85: Pública clasificada | W85: C45112022-Tipo de información Pública clasificada-Prestar sus servicios a la Gerencia de Afiliaciones y Novedades en la revisión, validación, conciliación y gestión de los procesos de mantenimiento de pólizas de los ramos de vida individual y colectivo.
A86: Operaciones | B86: Vicepresidencia de operaciones | C86: NO | D86: C450182022 | E86: 80121610 | F86: "Prestación de servicios de Contact Center de acuerdo a las políticas, normas y características definidas por POSITIVA COMPAÑÍA DE SEGUROS S.A., para ofrecer un soporte integral de información de la compañía, a los afiliados a Riesgos laborales, diferentes ramos de pólizas de vida: vida individual, accidentes personales, vida grupo, exequias, desempleo, planes de salud, rentas vitalicias, conmutaciones pensionales, BEPS y, a los otros ramos que sean autorizados a la compañía y a los ciudadanos en general; con el objetivo permanente de brindar una información completa y satisfactoria en primer contacto a cada una de las solicitudes, agregando valor a los asegurados y ciudadanos." | G86: 2022-12-01 | H86: 12 | I86: 2023-11-30 | J86: 12 | K86: Invitación directa | L86: GastosAdministrativos | M86: 400000000 | N86: 400000000 | O86: NO | Q86: Gerencia de Abastecimiento Estratégico contratacion@positiva.gov.co PBX: (1)6502200 Ext: 10641 | R86: SI | S86: SI | T86: NO | U86: SI | V86: Pública clasificada | W86: C450182022-Tipo de información Pública clasificada-"Prestación de servicios de Contact Center de acuerdo a las políticas, normas y características definidas por POSITIVA COMPAÑÍA DE SEGUROS S.A., para ofrecer un soporte integral de información de la compañía, a los afiliados a Riesgos laborales, diferentes ramos de pólizas de vida: vida individual, accidentes personales, vida grupo, exequias, desempleo, planes de salud, rentas vitalicias, conmutaciones pensionales, BEPS y, a los otros ramos que sean autorizados a la compañía y a los ciudadanos en general; con el objetivo permanente de brindar una información completa y satisfactoria en primer contacto a cada una de las solicitudes, agregando valor a los asegurados y ciudadanos."
A87: SECRETARIA GENERAL Y JURÍDICA | B87: Oficina Gestión Integral de Riesgos | C87: No | D87: C00022022 | E87: 80101510 | F87: Capacitación Proveedores en cumplimiento de requisitos de normas relacionadas con la capacitación de proveedores que ejecutan funciones de la compañía | G87: 2022-09-01 | H87: =MONTH(G87) -> 9 | I87: 2022-12-31 | J87: 4 | K87: Invitación directa | L87: GastosAdministrativos | M87: 21887599.47 | N87: 21887599.47 | O87: No | P87: N/A | Q87: Gerencia de Abastecimiento Estratégico contratacion@positiva.gov.co PBX: (1)6502200 Ext: 10641 | R87: NO | S87: NO | T87: NO | U87: NO | V87: =IF(U87="SI","Pública clasificada","Pública") -> Pública | W87: =CONCATENATE(D87,"-","Tipo de información"," ",V87,"-",F87) -> C00022022-Tipo de información Pública-Capacitación Proveedores en cumplimiento de requisitos de normas relacionadas con la capacitación de proveedores que ejecutan funciones de la compañía
A88: SECRETARIA GENERAL Y JURÍDICA | B88: Oficina Gestión Integral de Riesgos | C88: No | D88: C00032022 | E88: 81112201 | F88: Prestar servicios de soporte y mantenimiento de la herramienta ERA (ENTREPRISE RISK ASESSOR) que soporta la gestión de riesgos de la Oficina de Gestión Integral Riesgos. | G88: 2022-01-01 | H88: 1 | I88: 2022-07-31 | J88: 7 | K88: Invitación directa | L88: GastosAdministrativos | M88: 9736637.282 | N88: 9736637.282 | O88: No | P88: N/A | Q88: Gerencia de Abastecimiento Estratégico contratacion@positiva.gov.co PBX: (1)6502200 Ext: 10641 | R88: NO | S88: NO | T88: NO | U88: NO | V88: Pública | W88: C00032022-Tipo de información Pública-Prestar servicios de soporte y mantenimiento de la herramienta ERA (ENTREPRISE RISK ASESSOR) que soporta la gestión de riesgos de la Oficina de Gestión Integral Riesgos.
A89: SECRETARIA GENERAL Y JURÍDICA | B89: Oficina Gestión Integral de Riesgos | C89: No | D89: C00052022 | E89: 43232300 | F89: Investigaciones externas o internas relacionadas con LAFT, consultas en centrales de riesgo y busqueda de informacion acerca de cliente, proveedores, funcionarios y quienes correspondan. | G89: 2022-01-01 | H89: 1 | I89: 2022-12-31 | J89: 12 | K89: Invitación directa | L89: GastosAdministrativos | M89: 9520889.806 | N89: 9520889.806 | O89: No | P89: N/A | Q89: Gerencia de Abastecimiento Estratégico contratacion@positiva.gov.co PBX: (1)6502200 Ext: 10641 | R89: NO | S89: NO | T89: NO | U89: NO | V89: Pública | W89: C00052022-Tipo de información Pública-Investigaciones externas o internas relacionadas con LAFT, consultas en centrales de riesgo y busqueda de informacion acerca de cliente, proveedores, funcionarios y quienes correspondan.
A90: SECRETARIA GENERAL Y JURÍDICA | B90: Oficina Gestión Integral de Riesgos | C90: No | D90: C00042022 | E90: 43232300 | F90: Investigaciones externas o internas acerca de casos de fraude y/o corrupcion presentados en la entidad | G90: 2022-01-01 | H90: 1 | I90: 2022-12-31 | J90: 12 | K90: Invitación directa | L90: GastosAdministrativos | M90: 15691500 | N90: 15691500 | O90: No | P90: N/A | Q90: Gerencia de Abastecimiento Estratégico contratacion@positiva.gov.co PBX: (1)6502200 Ext: 10641 | R90: NO | S90: NO | T90: NO | U90: NO | V90: Pública | W90: C00042022-Tipo de información Pública-Investigaciones externas o internas acerca de casos de fraude y/o corrupcion presentados en la entidad
A91: SECRETARIA GENERAL Y JURÍDICA | B91: Oficina Gestión Integral de Riesgos | C91: No | D91: C00062022 | E91: 43232300 | F91: Actualización de información de clientes - SARLAFT | G91: 2022-07-01 | H91: 7 | I91: 2023-08-01 | J91: 12 | K91: Invitación directa | L91: GastosAdministrativos | M91: 20000000 | N91: 20000000 | O91: No | P91: N/A | Q91: Gerencia de Abastecimiento Estratégico contratacion@positiva.gov.co PBX: (1)6502200 Ext: 10641 | R91: NO | S91: NO | T91: NO | U91: NO | V91: Pública | W91: C00062022-Tipo de información Pública-Actualización de información de clientes - SARLAFT
A92: SECRETARIA GENERAL Y JURÍDICA | B92: Oficina Gestión Integral de Riesgos | C92: No | D92: C00072022 | E92: 43232300 | F92: Prestación de servicios para contar con acceso, consulta y verificación de información de Listas Vinculantes y Restrictivas, inhibitorias, informativas y PEPs | G92: 2022-09-01 | H92: 9 | I92: 2023-10-01 | J92: 12 | K92: Invitación directa | L92: GastosAdministrativos | M92: 15000000 | N92: 15000000 | O92: No | P92: N/A | Q92: Gerencia de Abastecimiento Estratégico contratacion@positiva.gov.co PBX: (1)6502200 Ext: 10641 | R92: NO | S92: NO | T92: NO | U92: NO | V92: Pública | W92: C00072022-Tipo de información Pública-Prestación de servicios para contar con acceso, consulta y verificación de información de Listas Vinculantes y Restrictivas, inhibitorias, informativas y PEPs
A93: PyP | B93: Gerencia de administración del riesgo | C93: No | D93: C75012022 | E93: 93141808 | F93: PRESTACION DE SERVICIOS DE PROMOCION Y PREVENCION – SERVICIOS_ESPECIALIZADOS_ZONA_ANTIOQUIA | G93: 1/01/2022 | H93: 1 | I93: 30/11/2022 | J93: =(I93-G93)/30 -> 11.1 | K93: Invitación directa | L93: GastosAdministrativos | M93: 200000000 | N93: 200000000 | O93: No | P93: N/A | Q93: Gerencia de Abastecimiento Estratégico contratacion@positiva.gov.co PBX: (1)6502200 Ext: 10641 | R93: SI | S93: SI | T93: NO | U93: SI | V93: Pública clasificada | W93: C75012022-Tipo de información Pública clasificada-PRESTACION DE SERVICIOS DE PROMOCION Y PREVENCION – SERVICIOS_ESPECIALIZADOS_ZONA_ANTIOQUIA
A94: PyP | B94: Gerencia de administración del riesgo | C94: No | D94: C75022022 | E94: 93141808 | F94: PRESTACION DE SERVICIOS DE PROMOCION Y PREVENCION – SERVICIOS_ESPECIALIZADOS_ZONA_ANTIOQUIA | G94: 1/01/2022 | H94: 1 | I94: 30/11/2022 | J94: 11.1 | K94: Invitación directa | L94: GastosAdministrativos | M94: 47323529 | N94: 47323529 | O94: No | P94: N/A | Q94: Gerencia de Abastecimiento Estratégico contratacion@positiva.gov.co PBX: (1)6502200 Ext: 10641 | R94: SI | S94: SI | T94: NO | U94: SI | V94: Pública clasificada | W94: C75022022-Tipo de información Pública clasificada-PRESTACION DE SERVICIOS DE PROMOCION Y PREVENCION – SERVICIOS_ESPECIALIZADOS_ZONA_ANTIOQUIA
A95: PyP | B95: Gerencia de administración del riesgo | C95: No | D95: C75032022 | E95: 93141808 | F95: PRESTACION DE SERVICIOS DE PROMOCION Y PREVENCION – SERVICIOS_ESPECIALIZADOS_ZONA_ANTIOQUIA | G95: 1/01/2022 | H95: 1 | I95: 30/11/2022 | J95: 11.1 | K95: Invitación directa | L95: GastosAdministrativos | M95: 206352227 | N95: 206352227 | O95: No | P95: N/A | Q95: Gerencia de Abastecimiento Estratégico contratacion@positiva.gov.co PBX: (1)6502200 Ext: 10641 | R95: SI | S95: SI | T95: NO | U95: SI | V95: Pública clasificada | W95: C75032022-Tipo de información Pública clasificada-PRESTACION DE SERVICIOS DE PROMOCION Y PREVENCION – SERVICIOS_ESPECIALIZADOS_ZONA_ANTIOQUIA
A96: PyP | B96: Gerencia de administración del riesgo | C96: No | D96: C75042022 | E96: 93141808 | F96: PRESTACION DE SERVICIOS DE PROMOCION Y PREVENCION – SERVICIOS_ESPECIALIZADOS_ZONA_ANTIOQUIA | G96: 1/01/2022 | H96: 1 | I96: 30/11/2022 | J96: 11.1 | K96: Invitación directa | L96: GastosAdministrativos | M96: 54273205 | N96: 54273205 | O96: No | P96: N/A | Q96: Gerencia de Abastecimiento Estratégico contratacion@positiva.gov.co PBX: (1)6502200 Ext: 10641 | R96: SI | S96: SI | T96: NO | U96: SI | V96: Pública clasificada | W96: C75042022-Tipo de información Pública clasificada-PRESTACION DE SERVICIOS DE PROMOCION Y PREVENCION – SERVICIOS_ESPECIALIZADOS_ZONA_ANTIOQUIA
A97: PyP | B97: Gerencia de administración del riesgo | C97: No | D97: C75052022 | E97: 93141808 | F97: PRESTACION DE SERVICIOS DE PROMOCION Y PREVENCION – SERVICIOS_ESPECIALIZADOS_ZONA_ANTIOQUIA | G97: 1/01/2022 | H97: 1 | I97: 30/11/2022 | J97: 11.1 | K97: Invitación directa | L97: GastosAdministrativos | M97: 65780731 | N97: 65780731 | O97: No | P97: N/A | Q97: Gerencia de Abastecimiento Estratégico contratacion@positiva.gov.co PBX: (1)6502200 Ext: 10641 | R97: SI | S97: SI | T97: NO | U97: SI | V97: Pública clasificada | W97: C75052022-Tipo de información Pública clasificada-PRESTACION DE SERVICIOS DE PROMOCION Y PREVENCION – SERVICIOS_ESPECIALIZADOS_ZONA_ANTIOQUIA
A98: PyP | B98: Gerencia de administración del riesgo | C98: No | D98: C75062022 | E98: 93141808 | F98: PRESTACION DE SERVICIOS DE PROMOCION Y PREVENCION – SERVICIOS_ESPECIALIZADOS_ZONA_ANTIOQUIA | G98: 1/01/2022 | H98: 1 | I98: 30/11/2022 | J98: 11.1 | K98: Invitación directa | L98: GastosAdministrativos | M98: 349193728 | N98: 349193728 | O98: No | P98: N/A | Q98: Gerencia de Abastecimiento Estratégico contratacion@positiva.gov.co PBX: (1)6502200 Ext: 10641 | R98: SI | S98: SI | T98: NO | U98: SI | V98: Pública clasificada | W98: C75062022-Tipo de información Pública clasificada-PRESTACION DE SERVICIOS DE PROMOCION Y PREVENCION – SERVICIOS_ESPECIALIZADOS_ZONA_ANTIOQUIA
A99: PyP | B99: Gerencia de administración del riesgo | C99: No | D99: C75072022 | E99: 93141808 | F99: PRESTACION DE SERVICIOS DE PROMOCION Y PREVENCION – SERVICIOS_ESPECIALIZADOS_ZONA_ANTIOQUIA | G99: 1/01/2022 | H99: 1 | I99: 30/11/2022 | J99: 11.1 | K99: Invitación directa | L99: GastosAdministrativos | M99: 243305085 | N99: 243305085 | O99: No | P99: N/A | Q99: Gerencia de Abastecimiento Estratégico contratacion@positiva.gov.co PBX: (1)6502200 Ext: 10641 | R99: SI | S99: SI | T99: NO | U99: SI | V99: Pública clasificada | W99: C75072022-Tipo de información Pública clasificada-PRESTACION DE SERVICIOS DE PROMOCION Y PREVENCION – SERVICIOS_ESPECIALIZADOS_ZONA_ANTIOQUIA
A100: PyP | B100: Gerencia de administración del riesgo | C100: No | D100: C75082022 | E100: 93141808 | F100: PRESTACION DE SERVICIOS DE PROMOCION Y PREVENCION – SERVICIOS_ESPECIALIZADOS_ZONA_ANTIOQUIA | G100: 1/01/2022 | H100: 1 | I100: 30/11/2022 | J100: 11.1 | K100: Invitación directa | L100: GastosAdministrativos | M100: 85000000 | N100: 85000000 | O100: No | P100: N/A | Q100: Gerencia de Abastecimiento Estratégico contratacion@positiva.gov.co PBX: (1)6502200 Ext: 10641 | R100: SI | S100: SI | T100: NO | U100: SI | V100: Pública clasificada | W100: C75082022-Tipo de información Pública clasificada-PRESTACION DE SERVICIOS DE PROMOCION Y PREVENCION – SERVICIOS_ESPECIALIZADOS_ZONA_ANTIOQUIA
A101: PyP | B101: Gerencia de administración del riesgo | C101: No | D101: C75092022 | E101: 93141808 | F101: PRESTACION DE SERVICIOS DE PROMOCION Y PREVENCION – SERVICIOS_ESPECIALIZADOS_ZONA_ANTIOQUIA | G101: 1/01/2022 | H101: 1 | I101: 30/11/2022 | J101: 11.1 | K101: Invitación directa | L101: GastosAdministrativos | M101: 90000000 | N101: 90000000 | O101: No | P101: N/A | Q101: Gerencia de Abastecimiento Estratégico contratacion@positiva.gov.co PBX: (1)6502200 Ext: 10641 | R101: SI | S101: SI | T101: NO | U101: SI | V101: Pública clasificada | W101: C75092022-Tipo de información Pública clasificada-PRESTACION DE SERVICIOS DE PROMOCION Y PREVENCION – SERVICIOS_ESPECIALIZADOS_ZONA_ANTIOQUIA
A102: PyP | B102: Gerencia de administración del riesgo | C102: No | D102: C75102022 | E102: 93141808 | F102: PRESTACION DE SERVICIOS DE PROMOCION Y PREVENCION – SERVICIOS_ESPECIALIZADOS_ZONA_ANTIOQUIA | G102: 1/01/2022 | H102: 1 | I102: 30/11/2022 | J102: 11.1 | K102: Invitación directa | L102: GastosAdministrativos | M102: 30000000 | N102: 30000000 | O102: No | P102: N/A | Q102: Gerencia de Abastecimiento Estratégico contratacion@positiva.gov.co PBX: (1)6502200 Ext: 10641 | R102: SI | S102: SI | T102: NO | U102: SI | V102: Pública clasificada | W102: C75102022-Tipo de información Pública clasificada-PRESTACION DE SERVICIOS DE PROMOCION Y PREVENCION – SERVICIOS_ESPECIALIZADOS_ZONA_ANTIOQUIA
A103: PyP | B103: Gerencia de administración del riesgo | C103: No | D103: C75112022 | E103: 93141808 | F103: PRESTACION DE SERVICIOS DE PROMOCION Y PREVENCION – SERVICIOS_ESPECIALIZADOS_ZONA_ANTIOQUIA | G103: 1/01/2022 | H103: 1 | I103: 30/11/2022 | J103: 11.1 | K103: Invitación directa | L103: GastosAdministrativos | M103: 163094491 | N103: 163094491 | O103: No | P103: N/A | Q103: Gerencia de Abastecimiento Estratégico contratacion@positiva.gov.co PBX: (1)6502200 Ext: 10641 | R103: SI | S103: SI | T103: NO | U103: SI | V103: Pública clasificada | W103: C75112022-Tipo de información Pública clasificada-PRESTACION DE SERVICIOS DE PROMOCION Y PREVENCION – SERVICIOS_ESPECIALIZADOS_ZONA_ANTIOQUIA
A104: PyP | B104: Gerencia de administración del riesgo | C104: No | D104: C75122022 | E104: 93141808 | F104: PRESTACION DE SERVICIOS DE PROMOCION Y PREVENCION – SERVICIOS_ESPECIALIZADOS_ZONA_ANTIOQUIA | G104: 1/01/2022 | H104: 1 | I104: 30/11/2022 | J104: 11.1 | K104: Invitación directa | L104: GastosAdministrativos | M104: 214432990 | N104: 214432990 | O104: No | P104: N/A | Q104: Gerencia de Abastecimiento Estratégico contratacion@positiva.gov.co PBX: (1)6502200 Ext: 10641 | R104: SI | S104: SI | T104: NO | U104: SI | V104: Pública clasificada | W104: C75122022-Tipo de información Pública clasificada-PRESTACION DE SERVICIOS DE PROMOCION Y PREVENCION – SERVICIOS_ESPECIALIZADOS_ZONA_ANTIOQUIA
A105: PyP | B105: Gerencia de administración del riesgo | C105: No | D105: C75132022 | E105: 93141808 | F105: PRESTACION DE SERVICIOS DE PROMOCION Y PREVENCION – SERVICIOS_ESPECIALIZADOS_ZONA_ANTIOQUIA | G105: 1/01/2022 | H105: 1 | I105: 30/11/2022 | J105: 11.1 | K105: Invitación directa | L105: GastosAdministrativos | M105: 95000000 | N105: 95000000 | O105: No | P105: N/A | Q105: Gerencia de Abastecimiento Estratégico contratacion@positiva.gov.co PBX: (1)6502200 Ext: 10641 | R105: SI | S105: SI | T105: NO | U105: SI | V105: Pública clasificada | W105: C75132022-Tipo de información Pública clasificada-PRESTACION DE SERVICIOS DE PROMOCION Y PREVENCION – SERVICIOS_ESPECIALIZADOS_ZONA_ANTIOQUIA
A106: PyP | B106: Gerencia de administración del riesgo | C106: No | D106: C75142022 | E106: 93141808 | F106: PRESTACION DE SERVICIOS DE PROMOCION Y PREVENCION – SERVICIOS_ESPECIALIZADOS_ZONA_ANTIOQUIA | G106: 1/01/2022 | H106: 1 | I106: 30/11/2022 | J106: 11.1 | K106: Invitación directa | L106: GastosAdministrativos | M106: 62482813 | N106: 62482813 | O106: No | P106: N/A | Q106: Gerencia de Abastecimiento Estratégico contratacion@positiva.gov.co PBX: (1)6502200 Ext: 10641 | R106: SI | S106: SI | T106: NO | U106: SI | V106: Pública clasificada | W106: C75142022-Tipo de información Pública clasificada-PRESTACION DE SERVICIOS DE PROMOCION Y PREVENCION – SERVICIOS_ESPECIALIZADOS_ZONA_ANTIOQUIA
A107: PyP | B107: Gerencia de administración del riesgo | C107: No | D107: C76012022 | E107: 93141808 | F107: PRESTACION DE SERVICIOS DE PROMOCION Y PREVENCION – SERVICIOS_ESPECIALIZADOS_ZONA_ATLANTICO | G107: 1/01/2022 | H107: 1 | I107: 30/11/2022 | J107: 11.1 | K107: Invitación directa | L107: GastosAdministrativos | M107: 115733143 | N107: 115733143 | O107: No | P107: N/A | Q107: Gerencia de Abastecimiento Estratégico contratacion@positiva.gov.co PBX: (1)6502200 Ext: 10641 | R107: SI | S107: SI | T107: NO | U107: SI | V107: Pública clasificada | W107: C76012022-Tipo de información Pública clasificada-PRESTACION DE SERVICIOS DE PROMOCION Y PREVENCION – SERVICIOS_ESPECIALIZADOS_ZONA_ATLANTICO
A108: PyP | B108: Gerencia de administración del riesgo | C108: No | D108: C76022022 | E108: 93141808 | F108: PRESTACION DE SERVICIOS DE PROMOCION Y PREVENCION – SERVICIOS_ESPECIALIZADOS_ZONA_ATLANTICO | G108: 1/01/2022 | H108: 1 | I108: 30/11/2022 | J108: 11.1 | K108: Invitación directa | L108: GastosAdministrativos | M108: 38076923 | N108: 38076923 | O108: No | P108: N/A | Q108: Gerencia de Abastecimiento Estratégico contratacion@positiva.gov.co PBX: (1)6502200 Ext: 10641 | R108: SI | S108: SI | T108: NO | U108: SI | V108: Pública clasificada | W108: C76022022-Tipo de información Pública clasificada-PRESTACION DE SERVICIOS DE PROMOCION Y PREVENCION – SERVICIOS_ESPECIALIZADOS_ZONA_ATLANTICO
A109: PyP | B109: Gerencia de administración del riesgo | C109: No | D109: C76032022 | E109: 93141808 | F109: PRESTACION DE SERVICIOS DE PROMOCION Y PREVENCION – SERVICIOS_ESPECIALIZADOS_ZONA_ATLANTICO | G109: 1/01/2022 | H109: 1 | I109: 30/11/2022 | J109: 11.1 | K109: Invitación directa | L109: GastosAdministrativos | M109: 100000000 | N109: 100000000 | O109: No | P109: N/A | Q109: Gerencia de Abastecimiento Estratégico contratacion@positiva.gov.co PBX: (1)6502200 Ext: 10641 | R109: SI | S109: SI | T109: NO | U109: SI | V109: Pública clasificada | W109: C76032022-Tipo de información Pública clasificada-PRESTACION DE SERVICIOS DE PROMOCION Y PREVENCION – SERVICIOS_ESPECIALIZADOS_ZONA_ATLANTICO
A110: PyP | B110: Gerencia de administración del riesgo | C110: No | D110: C76042022 | E110: 93141808 | F110: PRESTACION DE SERVICIOS DE PROMOCION Y PREVENCION – SERVICIOS_ESPECIALIZADOS_ZONA_ATLANTICO | G110: 1/01/2022 | H110: 1 | I110: 30/11/2022 | J110: 11.1 | K110: Invitación directa | L110: GastosAdministrativos | M110: 98172315 | N110: 98172315 | O110: No | P110: N/A | Q110: Gerencia de Abastecimiento Estratégico contratacion@positiva.gov.co PBX: (1)6502200 Ext: 10641 | R110: SI | S110: SI | T110: NO | U110: SI | V110: Pública clasificada | W110: C76042022-Tipo de información Pública clasificada-PRESTACION DE SERVICIOS DE PROMOCION Y PREVENCION – SERVICIOS_ESPECIALIZADOS_ZONA_ATLANTICO
A111: PyP | B111: Gerencia de administración del riesgo | C111: No | D111: C76052022 | E111: 93141808 | F111: PRESTACION DE SERVICIOS DE PROMOCION Y PREVENCION – SERVICIOS_ESPECIALIZADOS_ZONA_ATLANTICO | G111: 1/01/2022 | H111: 1 | I111: 30/11/2022 | J111: 11.1 | K111: Invitación directa | L111: GastosAdministrativos | M111: 110482143 | N111: 110482143 | O111: No | P111: N/A | Q111: Gerencia de Abastecimiento Estratégico contratacion@positiva.gov.co PBX: (1)6502200 Ext: 10641 | R111: SI | S111: SI | T111: NO | U111: SI | V111: Pública clasificada | W111: C76052022-Tipo de información Pública clasificada-PRESTACION DE SERVICIOS DE PROMOCION Y PREVENCION – SERVICIOS_ESPECIALIZADOS_ZONA_ATLANTICO
A112: PyP | B112: Gerencia de administración del riesgo | C112: No | D112: C76062022 | E112: 93141808 | F112: PRESTACION DE SERVICIOS DE PROMOCION Y PREVENCION – SERVICIOS_ESPECIALIZADOS_ZONA_ATLANTICO | G112: 1/01/2022 | H112: 1 | I112: 30/11/2022 | J112: 11.1 | K112: Invitación directa | L112: GastosAdministrativos | M112: 130339036 | N112: 130339036 | O112: No | P112: N/A | Q112: Gerencia de Abastecimiento Estratégico contratacion@positiva.gov.co PBX: (1)6502200 Ext: 10641 | R112: SI | S112: SI | T112: NO | U112: SI | V112: Pública clasificada | W112: C76062022-Tipo de información Pública clasificada-PRESTACION DE SERVICIOS DE PROMOCION Y PREVENCION – SERVICIOS_ESPECIALIZADOS_ZONA_ATLANTICO
A113: PyP | B113: Gerencia de administración del riesgo | C113: No | D113: C76072022 | E113: 93141808 | F113: PRESTACION DE SERVICIOS DE PROMOCION Y PREVENCION – SERVICIOS_ESPECIALIZADOS_ZONA_ATLANTICO | G113: 1/01/2022 | H113: 1 | I113: 30/11/2022 | J113: 11.1 | K113: Invitación directa | L113: GastosAdministrativos | M113: 198275000 | N113: 198275000 | O113: No | P113: N/A | Q113: Gerencia de Abastecimiento Estratégico contratacion@positiva.gov.co PBX: (1)6502200 Ext: 10641 | R113: SI | S113: SI | T113: NO | U113: SI | V113: Pública clasificada | W113: C76072022-Tipo de información Pública clasificada-PRESTACION DE SERVICIOS DE PROMOCION Y PREVENCION – SERVICIOS_ESPECIALIZADOS_ZONA_ATLANTICO
A114: PyP | B114: Gerencia de administración del riesgo | C114: No | D114: C76082022 | E114: 93141808 | F114: PRESTACION DE SERVICIOS DE PROMOCION Y PREVENCION – SERVICIOS_ESPECIALIZADOS_ZONA_ATLANTICO | G114: 1/01/2022 | H114: 1 | I114: 30/11/2022 | J114: 11.1 | K114: Invitación directa | L114: GastosAdministrativos | M114: 94087000 | N114: 94087000 | O114: No | P114: N/A | Q114: Gerencia de Abastecimiento Estratégico contratacion@positiva.gov.co PBX: (1)6502200 Ext: 10641 | R114: SI | S114: SI | T114: NO | U114: SI | V114: Pública clasificada | W114: C76082022-Tipo de información Pública clasificada-PRESTACION DE SERVICIOS DE PROMOCION Y PREVENCION – SERVICIOS_ESPECIALIZADOS_ZONA_ATLANTICO
A115: PyP | B115: Gerencia de administración del riesgo | C115: No | D115: C76092022 | E115: 93141808 | F115: PRESTACION DE SERVICIOS DE PROMOCION Y PREVENCION – SERVICIOS_ESPECIALIZADOS_ZONA_ATLANTICO | G115: 1/01/2022 | H115: 1 | I115: 30/11/2022 | J115: 11.1 | K115: Invitación directa | L115: GastosAdministrativos | M115: 221453919 | N115: 221453919 | O115: No | P115: N/A | Q115: Gerencia de Abastecimiento Estratégico contratacion@positiva.gov.co PBX: (1)6502200 Ext: 10641 | R115: SI | S115: SI | T115: NO | U115: SI | V115: Pública clasificada | W115: C76092022-Tipo de información Pública clasificada-PRESTACION DE SERVICIOS DE PROMOCION Y PREVENCION – SERVICIOS_ESPECIALIZADOS_ZONA_ATLANTICO
A116: PyP | B116: Gerencia de administración del riesgo | C116: No | D116: C76102022 | E116: 93141808 | F116: PRESTACION DE SERVICIOS DE PROMOCION Y PREVENCION – SERVICIOS_ESPECIALIZADOS_ZONA_ATLANTICO | G116: 1/01/2022 | H116: 1 | I116: 30/11/2022 | J116: 11.1 | K116: Invitación directa | L116: GastosAdministrativos | M116: 268510373 | N116: 268510373 | O116: No | P116: N/A | Q116: Gerencia de Abastecimiento Estratégico contratacion@positiva.gov.co PBX: (1)6502200 Ext: 10641 | R116: SI | S116: SI | T116: NO | U116: SI | V116: Pública clasificada | W116: C76102022-Tipo de información Pública clasificada-PRESTACION DE SERVICIOS DE PROMOCION Y PREVENCION – SERVICIOS_ESPECIALIZADOS_ZONA_ATLANTICO
A117: PyP | B117: Gerencia de administración del riesgo | C117: No | D117: C76112022 | E117: 93141808 | F117: PRESTACION DE SERVICIOS DE PROMOCION Y PREVENCION – SERVICIOS_ESPECIALIZADOS_ZONA_ATLANTICO | G117: 1/01/2022 | H117: 1 | I117: 30/11/2022 | J117: 11.1 | K117: Invitación directa | L117: GastosAdministrativos | M117: 1849897080 | N117: 1849897080 | O117: No | P117: N/A | Q117: Gerencia de Abastecimiento Estratégico contratacion@positiva.gov.co PBX: (1)6502200 Ext: 10641 | R117: SI | S117: SI | T117: NO | U117: SI | V117: Pública clasificada | W117: C76112022-Tipo de información Pública clasificada-PRESTACION DE SERVICIOS DE PROMOCION Y PREVENCION – SERVICIOS_ESPECIALIZADOS_ZONA_ATLANTICO
A118: PyP | B118: Gerencia de administración del riesgo | C118: No | D118: C76122022 | E118: 93141808 | F118: PRESTACION DE SERVICIOS DE PROMOCION Y PREVENCION – SERVICIOS_ESPECIALIZADOS_ZONA_ATLANTICO | G118: 1/01/2022 | H118: 1 | I118: 30/11/2022 | J118: 11.1 | K118: Invitación directa | L118: GastosAdministrativos | M118: 54476190 | N118: 54476190 | O118: No | P118: N/A | Q118: Gerencia de Abastecimiento Estratégico contratacion@positiva.gov.co PBX: (1)6502200 Ext: 10641 | R118: SI | S118: SI | T118: NO | U118: SI | V118: Pública clasificada | W118: C76122022-Tipo de información Pública clasificada-PRESTACION DE SERVICIOS DE PROMOCION Y PREVENCION – SERVICIOS_ESPECIALIZADOS_ZONA_ATLANTICO
A119: PyP | B119: Gerencia de administración del riesgo | C119: No | D119: C76132022 | E119: 93141808 | F119: PRESTACION DE SERVICIOS DE PROMOCION Y PREVENCION – SERVICIOS_ESPECIALIZADOS_ZONA_ATLANTICO | G119: 1/01/2022 | H119: 1 | I119: 30/11/2022 | J119: 11.1 | K119: Invitación directa | L119: GastosAdministrativos | M119: 94087000 | N119: 94087000 | O119: No | P119: N/A | Q119: Gerencia de Abastecimiento Estratégico contratacion@positiva.gov.co PBX: (1)6502200 Ext: 10641 | R119: SI | S119: SI | T119: NO | U119: SI | V119: Pública clasificada | W119: C76132022-Tipo de información Pública clasificada-PRESTACION DE SERVICIOS DE PROMOCION Y PREVENCION – SERVICIOS_ESPECIALIZADOS_ZONA_ATLANTICO
A120: PyP | B120: Gerencia de administración del riesgo | C120: No | D120: C76142022 | E120: 93141808 | F120: PRESTACION DE SERVICIOS DE PROMOCION Y PREVENCION – SERVICIOS_ESPECIALIZADOS_ZONA_ATLANTICO | G120: 1/01/2022 | H120: 1 | I120: 30/11/2022 | J120: 11.1 | K120: Invitación directa | L120: GastosAdministrativos | M120: 100000000 | N120: 100000000 | O120: No | P120: N/A | Q120: Gerencia de Abastecimiento Estratégico contratacion@positiva.gov.co PBX: (1)6502200 Ext: 10641 | R120: SI | S120: SI | T120: NO | U120: SI | V120: Pública clasificada | W120: C76142022-Tipo de información Pública clasificada-PRESTACION DE SERVICIOS DE PROMOCION Y PREVENCION – SERVICIOS_ESPECIALIZADOS_ZONA_ATLANTICO
A121: PyP | B121: Gerencia de administración del riesgo | C121: No | D121: C76152022 | E121: 93141808 | F121: PRESTACION DE SERVICIOS DE PROMOCION Y PREVENCION – SERVICIOS_ESPECIALIZADOS_ZONA_ATLANTICO | G121: 1/01/2022 | H121: 1 | I121: 30/11/2022 | J121: 11.1 | K121: Invitación directa | L121: GastosAdministrativos | M121: 103339036 | N121: 103339036 | O121: No | P121: N/A | Q121: Gerencia de Abastecimiento Estratégico contratacion@positiva.gov.co PBX: (1)6502200 Ext: 10641 | R121: SI | S121: SI | T121: NO | U121: SI | V121: Pública clasificada | W121: C76152022-Tipo de información Pública clasificada-PRESTACION DE SERVICIOS DE PROMOCION Y PREVENCION – SERVICIOS_ESPECIALIZADOS_ZONA_ATLANTICO
A122: PyP | B122: Gerencia de administración del riesgo | C122: No | D122: C76162022 | E122: 93141808 | F122: PRESTACION DE SERVICIOS DE PROMOCION Y PREVENCION – SERVICIOS_ESPECIALIZADOS_ZONA_ATLANTICO | G122: 1/01/2022 | H122: 1 | I122: 30/11/2022 | J122: 11.1 | K122: Invitación directa | L122: GastosAdministrativos | M122: 115000000 | N122: 115000000 | O122: No | P122: N/A | Q122: Gerencia de Abastecimiento Estratégico contratacion@positiva.gov.co PBX: (1)6502200 Ext: 10641 | R122: SI | S122: SI | T122: NO | U122: SI | V122: Pública clasificada | W122: C76162022-Tipo de información Pública clasificada-PRESTACION DE SERVICIOS DE PROMOCION Y PREVENCION – SERVICIOS_ESPECIALIZADOS_ZONA_ATLANTICO
A123: PyP | B123: Gerencia de administración del riesgo | C123: No | D123: C76172022 | E123: 93141808 | F123: PRESTACION DE SERVICIOS DE PROMOCION Y PREVENCION – SERVICIOS_ESPECIALIZADOS_ZONA_ATLANTICO | G123: 1/01/2022 | H123: 1 | I123: 30/11/2022 | J123: 11.1 | K123: Invitación directa | L123: GastosAdministrativos | M123: 40000000 | N123: 40000000 | O123: No | P123: N/A | Q123: Gerencia de Abastecimiento Estratégico contratacion@positiva.gov.co PBX: (1)6502200 Ext: 10641 | R123: SI | S123: SI | T123: NO | U123: SI | V123: Pública clasificada | W123: C76172022-Tipo de información Pública clasificada-PRESTACION DE SERVICIOS DE PROMOCION Y PREVENCION – SERVICIOS_ESPECIALIZADOS_ZONA_ATLANTICO
A124: PyP | B124: Gerencia de administración del riesgo | C124: No | D124: C76182022 | E124: 93141808 | F124: PRESTACION DE SERVICIOS DE PROMOCION Y PREVENCION – SERVICIOS_ESPECIALIZADOS_ZONA_ATLANTICO | G124: 1/01/2022 | H124: 1 | I124: 30/11/2022 | J124: 11.1 | K124: Invitación directa | L124: GastosAdministrativos | M124: 54544219 | N124: 54544219 | O124: No | P124: N/A | Q124: Gerencia de Abastecimiento Estratégico contratacion@positiva.gov.co PBX: (1)6502200 Ext: 10641 | R124: SI | S124: SI | T124: NO | U124: SI | V124: Pública clasificada | W124: C76182022-Tipo de información Pública clasificada-PRESTACION DE SERVICIOS DE PROMOCION Y PREVENCION – SERVICIOS_ESPECIALIZADOS_ZONA_ATLANTICO
A125: PyP | B125: Gerencia de administración del riesgo | C125: No | D125: C76192022 | E125: 93141808 | F125: PRESTACION DE SERVICIOS DE PROMOCION Y PREVENCION – SERVICIOS_ESPECIALIZADOS_ZONA_ATLANTICO | G125: 1/01/2022 | H125: 1 | I125: 30/11/2022 | J125: 11.1 | K125: Invitación directa | L125: GastosAdministrativos | M125: 220358306 | N125: 220358306 | O125: No | P125: N/A | Q125: Gerencia de Abastecimiento Estratégico contratacion@positiva.gov.co PBX: (1)6502200 Ext: 10641 | R125: SI | S125: SI | T125: NO | U125: SI | V125: Pública clasificada | W125: C76192022-Tipo de información Pública clasificada-PRESTACION DE SERVICIOS DE PROMOCION Y PREVENCION – SERVICIOS_ESPECIALIZADOS_ZONA_ATLANTICO
A126: PyP | B126: Gerencia de administración del riesgo | C126: No | D126: C76202022 | E126: 93141808 | F126: PRESTACION DE SERVICIOS DE PROMOCION Y PREVENCION – SERVICIOS_ESPECIALIZADOS_ZONA_ATLANTICO | G126: 1/01/2022 | H126: 1 | I126: 30/11/2022 | J126: 11.1 | K126: Invitación directa | L126: GastosAdministrativos | M126: 121302817 | N126: 121302817 | O126: No | P126: N/A | Q126: Gerencia de Abastecimiento Estratégico contratacion@positiva.gov.co PBX: (1)6502200 Ext: 10641 | R126: SI | S126: SI | T126: NO | U126: SI | V126: Pública clasificada | W126: C76202022-Tipo de información Pública clasificada-PRESTACION DE SERVICIOS DE PROMOCION Y PREVENCION – SERVICIOS_ESPECIALIZADOS_ZONA_ATLANTICO
A127: PyP | B127: Gerencia de administración del riesgo | C127: No | D127: C76212022 | E127: 93141808 | F127: PRESTACION DE SERVICIOS DE PROMOCION Y PREVENCION – SERVICIOS_ESPECIALIZADOS_ZONA_ATLANTICO | G127: 1/01/2022 | H127: 1 | I127: 30/11/2022 | J127: 11.1 | K127: Invitación directa | L127: GastosAdministrativos | M127: 181725352 | N127: 181725352 | O127: No | P127: N/A | Q127: Gerencia de Abastecimiento Estratégico contratacion@positiva.gov.co PBX: (1)6502200 Ext: 10641 | R127: SI | S127: SI | T127: NO | U127: SI | V127: Pública clasificada | W127: C76212022-Tipo de información Pública clasificada-PRESTACION DE SERVICIOS DE PROMOCION Y PREVENCION – SERVICIOS_ESPECIALIZADOS_ZONA_ATLANTICO
A128: PyP | B128: Gerencia de administración del riesgo | C128: No | D128: C76222022 | E128: 93141808 | F128: PRESTACION DE SERVICIOS DE PROMOCION Y PREVENCION – SERVICIOS_ESPECIALIZADOS_ZONA_ATLANTICO | G128: 1/01/2022 | H128: 1 | I128: 30/11/2022 | J128: 11.1 | K128: Invitación directa | L128: GastosAdministrativos | M128: 156679181 | N128: 156679181 | O128: No | P128: N/A | Q128: Gerencia de Abastecimiento Estratégico contratacion@positiva.gov.co PBX: (1)6502200 Ext: 10641 | R128: SI | S128: SI | T128: NO | U128: SI | V128: Pública clasificada | W128: C76222022-Tipo de información Pública clasificada-PRESTACION DE SERVICIOS DE PROMOCION Y PREVENCION – SERVICIOS_ESPECIALIZADOS_ZONA_ATLANTICO
A129: PyP | B129: Gerencia de administración del riesgo | C129: No | D129: C76232022 | E129: 93141808 | F129: PRESTACION DE SERVICIOS DE PROMOCION Y PREVENCION – SERVICIOS_ESPECIALIZADOS_ZONA_ATLANTICO | G129: 1/01/2022 | H129: 1 | I129: 30/11/2022 | J129: 11.1 | K129: Invitación directa | L129: GastosAdministrativos | M129: 11000000 | N129: 11000000 | O129: No | P129: N/A | Q129: Gerencia de Abastecimiento Estratégico contratacion@positiva.gov.co PBX: (1)6502200 Ext: 10641 | R129: SI | S129: SI | T129: NO | U129: SI | V129: Pública clasificada | W129: C76232022-Tipo de información Pública clasificada-PRESTACION DE SERVICIOS DE PROMOCION Y PREVENCION – SERVICIOS_ESPECIALIZADOS_ZONA_ATLANTICO
A130: PyP | B130: Gerencia de administración del riesgo | C130: No | D130: C76242022 | E130: 93141808 | F130: PRESTACION DE SERVICIOS DE PROMOCION Y PREVENCION – SERVICIOS_ESPECIALIZADOS_ZONA_ATLANTICO | G130: 1/01/2022 | H130: 1 | I130: 30/11/2022 | J130: 11.1 | K130: Invitación directa | L130: GastosAdministrativos | M130: 76769039 | N130: 76769039 | O130: No | P130: N/A | Q130: Gerencia de Abastecimiento Estratégico contratacion@positiva.gov.co PBX: (1)6502200 Ext: 10641 | R130: SI | S130: SI | T130: NO | U130: SI | V130: Pública clasificada | W130: C76242022-Tipo de información Pública clasificada-PRESTACION DE SERVICIOS DE PROMOCION Y PREVENCION – SERVICIOS_ESPECIALIZADOS_ZONA_ATLANTICO
A131: PyP | B131: Gerencia de administración del riesgo | C131: No | D131: C76252022 | E131: 93141808 | F131: PRESTACION DE SERVICIOS DE PROMOCION Y PREVENCION – SERVICIOS_ESPECIALIZADOS_ZONA_ATLANTICO | G131: 1/01/2022 | H131: 1 | I131: 30/11/2022 | J131: 11.1 | K131: Invitación directa | L131: GastosAdministrativos | M131: 1417564738 | N131: 1417564738 | O131: No | P131: N/A | Q131: Gerencia de Abastecimiento Estratégico contratacion@positiva.gov.co PBX: (1)6502200 Ext: 10641 | R131: SI | S131: SI | T131: NO | U131: SI | V131: Pública clasificada | W131: C76252022-Tipo de información Pública clasificada-PRESTACION DE SERVICIOS DE PROMOCION Y PREVENCION – SERVICIOS_ESPECIALIZADOS_ZONA_ATLANTICO
A132: PyP | B132: Gerencia de administración del riesgo | C132: No | D132: C76262022 | E132: 93141808 | F132: PRESTACION DE SERVICIOS DE PROMOCION Y PREVENCION – SERVICIOS_ESPECIALIZADOS_ZONA_ATLANTICO | G132: 1/01/2022 | H132: 1 | I132: 30/11/2022 | J132: 11.1 | K132: Invitación directa | L132: GastosAdministrativos | M132: 131291688 | N132: 131291688 | O132: No | P132: N/A | Q132: Gerencia de Abastecimiento Estratégico contratacion@positiva.gov.co PBX: (1)6502200 Ext: 10641 | R132: SI | S132: SI | T132: NO | U132: SI | V132: Pública clasificada | W132: C76262022-Tipo de información Pública clasificada-PRESTACION DE SERVICIOS DE PROMOCION Y PREVENCION – SERVICIOS_ESPECIALIZADOS_ZONA_ATLANTICO
A133: PyP | B133: Gerencia de administración del riesgo | C133: No | D133: C76272022 | E133: 93141808 | F133: PRESTACION DE SERVICIOS DE PROMOCION Y PREVENCION – SERVICIOS_ESPECIALIZADOS_ZONA_ATLANTICO | G133: 1/01/2022 | H133: 1 | I133: 30/11/2022 | J133: 11.1 | K133: Invitación directa | L133: GastosAdministrativos | M133: 16791649 | N133: 16791649 | O133: No | P133: N/A | Q133: Gerencia de Abastecimiento Estratégico contratacion@positiva.gov.co PBX: (1)6502200 Ext: 10641 | R133: SI | S133: SI | T133: NO | U133: SI | V133: Pública clasificada | W133: C76272022-Tipo de información Pública clasificada-PRESTACION DE SERVICIOS DE PROMOCION Y PREVENCION – SERVICIOS_ESPECIALIZADOS_ZONA_ATLANTICO
A134: PyP | B134: Gerencia de administración del riesgo | C134: No | D134: C76282022 | E134: 93141808 | F134: PRESTACION DE SERVICIOS DE PROMOCION Y PREVENCION – SERVICIOS_ESPECIALIZADOS_ZONA_ATLANTICO | G134: 1/01/2022 | H134: 1 | I134: 30/11/2022 | J134: 11.1 | K134: Invitación directa | L134: GastosAdministrativos | M134: 309497143 | N134: 309497143 | O134: No | P134: N/A | Q134: Gerencia de Abastecimiento Estratégico contratacion@positiva.gov.co PBX: (1)6502200 Ext: 10641 | R134: SI | S134: SI | T134: NO | U134: SI | V134: Pública clasificada | W134: C76282022-Tipo de información Pública clasificada-PRESTACION DE SERVICIOS DE PROMOCION Y PREVENCION – SERVICIOS_ESPECIALIZADOS_ZONA_ATLANTICO
A135: PyP | B135: Gerencia de administración del riesgo | C135: No | D135: C76292022 | E135: 93141808 | F135: PRESTACION DE SERVICIOS DE PROMOCION Y PREVENCION – SERVICIOS_ESPECIALIZADOS_ZONA_ATLANTICO | G135: 1/01/2022 | H135: 1 | I135: 30/11/2022 | J135: 11.1 | K135: Invitación directa | L135: GastosAdministrativos | M135: 32258400 | N135: 32258400 | O135: No | P135: N/A | Q135: Gerencia de Abastecimiento Estratégico contratacion@positiva.gov.co PBX: (1)6502200 Ext: 10641 | R135: SI | S135: SI | T135: NO | U135: SI | V135: Pública clasificada | W135: C76292022-Tipo de información Pública clasificada-PRESTACION DE SERVICIOS DE PROMOCION Y PREVENCION – SERVICIOS_ESPECIALIZADOS_ZONA_ATLANTICO
A136: PyP | B136: Gerencia de administración del riesgo | C136: No | D136: C76302022 | E136: 93141808 | F136: PRESTACION DE SERVICIOS DE PROMOCION Y PREVENCION – SERVICIOS_ESPECIALIZADOS_ZONA_ATLANTICO | G136: 1/01/2022 | H136: 1 | I136: 30/11/2022 | J136: 11.1 | K136: Invitación directa | L136: GastosAdministrativos | M136: 69665466 | N136: 69665466 | O136: No | P136: N/A | Q136: Gerencia de Abastecimiento Estratégico contratacion@positiva.gov.co PBX: (1)6502200 Ext: 10641 | R136: SI | S136: SI | T136: NO | U136: SI | V136: Pública clasificada | W136: C76302022-Tipo de información Pública clasificada-PRESTACION DE SERVICIOS DE PROMOCION Y PREVENCION – SERVICIOS_ESPECIALIZADOS_ZONA_ATLANTICO
A137: PyP | B137: Gerencia de administración del riesgo | C137: No | D137: C76312022 | E137: 93141808 | F137: PRESTACION DE SERVICIOS DE PROMOCION Y PREVENCION – SERVICIOS_ESPECIALIZADOS_ZONA_ATLANTICO | G137: 1/01/2022 | H137: 1 | I137: 30/11/2022 | J137: 11.1 | K137: Invitación directa | L137: GastosAdministrativos | M137: 118715998 | N137: 118715998 | O137: No | P137: N/A | Q137: Gerencia de Abastecimiento Estratégico contratacion@positiva.gov.co PBX: (1)6502200 Ext: 10641 | R137: SI | S137: SI | T137: NO | U137: SI | V137: Pública clasificada | W137: C76312022-Tipo de información Pública clasificada-PRESTACION DE SERVICIOS DE PROMOCION Y PREVENCION – SERVICIOS_ESPECIALIZADOS_ZONA_ATLANTICO
A138: PyP | B138: Gerencia de administración del riesgo | C138: No | D138: C77012022 | E138: 93141808 | F138: PRESTACION DE SERVICIOS DE PROMOCION Y PREVENCION – SERVICIOS_ESPECIALIZADOS_ZONA_BOGOTA | G138: 1/01/2022 | H138: 1 | I138: 30/11/2022 | J138: 11.1 | K138: Invitación directa | L138: GastosAdministrativos | M138: 183827812 | N138: 183827812 | O138: No | P138: N/A | Q138: Gerencia de Abastecimiento Estratégico contratacion@positiva.gov.co PBX: (1)6502200 Ext: 10641 | R138: SI | S138: SI | T138: NO | U138: SI | V138: Pública clasificada | W138: C77012022-Tipo de información Pública clasificada-PRESTACION DE SERVICIOS DE PROMOCION Y PREVENCION – SERVICIOS_ESPECIALIZADOS_ZONA_BOGOTA
A139: PyP | B139: Gerencia de administración del riesgo | C139: No | D139: C77022022 | E139: 93141808 | F139: PRESTACION DE SERVICIOS DE PROMOCION Y PREVENCION – SERVICIOS_ESPECIALIZADOS_ZONA_BOGOTA | G139: 1/01/2022 | H139: 1 | I139: 30/11/2022 | J139: 11.1 | K139: Invitación directa | L139: GastosAdministrativos | M139: 15000000 | N139: 15000000 | O139: No | P139: N/A | Q139: Gerencia de Abastecimiento Estratégico contratacion@positiva.gov.co PBX: (1)6502200 Ext: 10641 | R139: SI | S139: SI | T139: NO | U139: SI | V139: Pública clasificada | W139: C77022022-Tipo de información Pública clasificada-PRESTACION DE SERVICIOS DE PROMOCION Y PREVENCION – SERVICIOS_ESPECIALIZADOS_ZONA_BOGOTA
A140: PyP | B140: Gerencia de administración del riesgo | C140: No | D140: C77032022 | E140: 93141808 | F140: PRESTACION DE SERVICIOS DE PROMOCION Y PREVENCION – SERVICIOS_ESPECIALIZADOS_ZONA_BOGOTA | G140: 1/01/2022 | H140: 1 | I140: 30/11/2022 | J140: 11.1 | K140: Invitación directa | L140: GastosAdministrativos | M140: 70000000 | N140: 70000000 | O140: No | P140: N/A | Q140: Gerencia de Abastecimiento Estratégico contratacion@positiva.gov.co PBX: (1)6502200 Ext: 10641 | R140: SI | S140: SI | T140: NO | U140: SI | V140: Pública clasificada | W140: C77032022-Tipo de información Pública clasificada-PRESTACION DE SERVICIOS DE PROMOCION Y PREVENCION – SERVICIOS_ESPECIALIZADOS_ZONA_BOGOTA
A141: PyP | B141: Gerencia de administración del riesgo | C141: No | D141: C81012022 | E141: 93141808 | F141: PRESTACION DE SERVICIOS DE PROMOCION Y PREVENCION – SERVICIOS_ESPECIALIZADOS_CUENTA_RAMA | G141: 1/01/2022 | H141: 1 | I141: 30/11/2022 | J141: 11.1 | K141: Invitación directa | L141: GastosAdministrativos | M141: 109678560 | N141: 109678560 | O141: No | P141: N/A | Q141: Gerencia de Abastecimiento Estratégico contratacion@positiva.gov.co PBX: (1)6502200 Ext: 10641 | R141: SI | S141: SI | T141: NO | U141: SI | V141: Pública clasificada | W141: C81012022-Tipo de información Pública clasificada-PRESTACION DE SERVICIOS DE PROMOCION Y PREVENCION – SERVICIOS_ESPECIALIZADOS_CUENTA_RAMA
A142: PyP | B142: Gerencia de administración del riesgo | C142: No | D142: C81022022 | E142: 93141808 | F142: PRESTACION DE SERVICIOS DE PROMOCION Y PREVENCION – SERVICIOS_ESPECIALIZADOS_CUENTA_RAMA | G142: 1/01/2022 | H142: 1 | I142: 30/11/2022 | J142: 11.1 | K142: Invitación directa | L142: GastosAdministrativos | M142: 260766485 | N142: 260766485 | O142: No | P142: N/A | Q142: Gerencia de Abastecimiento Estratégico contratacion@positiva.gov.co PBX: (1)6502200 Ext: 10641 | R142: SI | S142: SI | T142: NO | U142: SI | V142: Pública clasificada | W142: C81022022-Tipo de información Pública clasificada-PRESTACION DE SERVICIOS DE PROMOCION Y PREVENCION – SERVICIOS_ESPECIALIZADOS_CUENTA_RAMA
A143: PyP | B143: Gerencia de administración del riesgo | C143: No | D143: C81032022 | E143: 93141808 | F143: PRESTACION DE SERVICIOS DE PROMOCION Y PREVENCION – SERVICIOS_ESPECIALIZADOS_CUENTA_RAMA | G143: 1/01/2022 | H143: 1 | I143: 30/11/2022 | J143: 11.1 | K143: Invitación directa | L143: GastosAdministrativos | M143: 343750000 | N143: 343750000 | O143: No | P143: N/A | Q143: Gerencia de Abastecimiento Estratégico contratacion@positiva.gov.co PBX: (1)6502200 Ext: 10641 | R143: SI | S143: SI | T143: NO | U143: SI | V143: Pública clasificada | W143: C81032022-Tipo de información Pública clasificada-PRESTACION DE SERVICIOS DE PROMOCION Y PREVENCION – SERVICIOS_ESPECIALIZADOS_CUENTA_RAMA
A144: PyP | B144: Gerencia de administración del riesgo | C144: No | D144: C79012022 | E144: 93141808 | F144: PRESTACION DE SERVICIOS DE PROMOCION Y PREVENCION – SERVICIOS_ESPECIALIZADOS_ZONA_SANTANDER | G144: 1/01/2022 | H144: 1 | I144: 30/11/2022 | J144: 11.1 | K144: Invitación directa | L144: GastosAdministrativos | M144: 150000000 | N144: 150000000 | O144: No | P144: N/A | Q144: Gerencia de Abastecimiento Estratégico contratacion@positiva.gov.co PBX: (1)6502200 Ext: 10641 | R144: SI | S144: SI | T144: NO | U144: SI | V144: Pública clasificada | W144: C79012022-Tipo de información Pública clasificada-PRESTACION DE SERVICIOS DE PROMOCION Y PREVENCION – SERVICIOS_ESPECIALIZADOS_ZONA_SANTANDER
A145: PyP | B145: Gerencia de administración del riesgo | C145: No | D145: C79022022 | E145: 93141808 | F145: PRESTACION DE SERVICIOS DE PROMOCION Y PREVENCION – SERVICIOS_ESPECIALIZADOS_ZONA_SANTANDER | G145: 1/01/2022 | H145: 1 | I145: 30/11/2022 | J145: 11.1 | K145: Invitación directa | L145: GastosAdministrativos | M145: 220000000 | N145: 220000000 | O145: No | P145: N/A | Q145: Gerencia de Abastecimiento Estratégico contratacion@positiva.gov.co PBX: (1)6502200 Ext: 10641 | R145: SI | S145: SI | T145: NO | U145: SI | V145: Pública clasificada | W145: C79022022-Tipo de información Pública clasificada-PRESTACION DE SERVICIOS DE PROMOCION Y PREVENCION – SERVICIOS_ESPECIALIZADOS_ZONA_SANTANDER
A146: PyP | B146: Gerencia de administración del riesgo | C146: No | D146: C79032022 | E146: 93141808 | F146: PRESTACION DE SERVICIOS DE PROMOCION Y PREVENCION – SERVICIOS_ESPECIALIZADOS_ZONA_SANTANDER | G146: 1/01/2022 | H146: 1 | I146: 30/11/2022 | J146: 11.1 | K146: Invitación directa | L146: GastosAdministrativos | M146: 60000000 | N146: 60000000 | O146: No | P146: N/A | Q146: Gerencia de Abastecimiento Estratégico contratacion@positiva.gov.co PBX: (1)6502200 Ext: 10641 | R146: SI | S146: SI | T146: NO | U146: SI | V146: Pública clasificada | W146: C79032022-Tipo de información Pública clasificada-PRESTACION DE SERVICIOS DE PROMOCION Y PREVENCION – SERVICIOS_ESPECIALIZADOS_ZONA_SANTANDER
A147: PyP | B147: Gerencia de administración del riesgo | C147: No | D147: C79042022 | E147: 93141808 | F147: PRESTACION DE SERVICIOS DE PROMOCION Y PREVENCION – SERVICIOS_ESPECIALIZADOS_ZONA_SANTANDER | G147: 1/01/2022 | H147: 1 | I147: 30/11/2022 | J147: 11.1 | K147: Invitación directa | L147: GastosAdministrativos | M147: 220000000 | N147: 220000000 | O147: No | P147: N/A | Q147: Gerencia de Abastecimiento Estratégico contratacion@positiva.gov.co PBX: (1)6502200 Ext: 10641 | R147: SI | S147: SI | T147: NO | U147: SI | V147: Pública clasificada | W147: C79042022-Tipo de información Pública clasificada-PRESTACION DE SERVICIOS DE PROMOCION Y PREVENCION – SERVICIOS_ESPECIALIZADOS_ZONA_SANTANDER
A148: PyP | B148: Gerencia de administración del riesgo | C148: No | D148: C79052022 | E148: 93141808 | F148: PRESTACION DE SERVICIOS DE PROMOCION Y PREVENCION – SERVICIOS_ESPECIALIZADOS_ZONA_SANTANDER | G148: 1/01/2022 | H148: 1 | I148: 30/11/2022 | J148: 11.1 | K148: Invitación directa | L148: GastosAdministrativos | M148: 85000000 | N148: 85000000 | O148: No | P148: N/A | Q148: Gerencia de Abastecimiento Estratégico contratacion@positiva.gov.co PBX: (1)6502200 Ext: 10641 | R148: SI | S148: SI | T148: NO | U148: SI | V148: Pública clasificada | W148: C79052022-Tipo de información Pública clasificada-PRESTACION DE SERVICIOS DE PROMOCION Y PREVENCION – SERVICIOS_ESPECIALIZADOS_ZONA_SANTANDER
A149: PyP | B149: Gerencia de administración del riesgo | C149: No | D149: C79062022 | E149: 93141808 | F149: PRESTACION DE SERVICIOS DE PROMOCION Y PREVENCION – SERVICIOS_ESPECIALIZADOS_ZONA_SANTANDER | G149: 1/01/2022 | H149: 1 | I149: 30/11/2022 | J149: 11.1 | K149: Invitación directa | L149: GastosAdministrativos | M149: 133462870 | N149: 133462870 | O149: No | P149: N/A | Q149: Gerencia de Abastecimiento Estratégico contratacion@positiva.gov.co PBX: (1)6502200 Ext: 10641 | R149: SI | S149: SI | T149: NO | U149: SI | V149: Pública clasificada | W149: C79062022-Tipo de información Pública clasificada-PRESTACION DE SERVICIOS DE PROMOCION Y PREVENCION – SERVICIOS_ESPECIALIZADOS_ZONA_SANTANDER
A150: PyP | B150: Gerencia de administración del riesgo | C150: No | D150: C79072022 | E150: 93141808 | F150: PRESTACION DE SERVICIOS DE PROMOCION Y PREVENCION – SERVICIOS_ESPECIALIZADOS_ZONA_SANTANDER | G150: 1/01/2022 | H150: 1 | I150: 30/11/2022 | J150: 11.1 | K150: Invitación directa | L150: GastosAdministrativos | M150: 90000000 | N150: 90000000 | O150: No | P150: N/A | Q150: Gerencia de Abastecimiento Estratégico contratacion@positiva.gov.co PBX: (1)6502200 Ext: 10641 | R150: SI | S150: SI | T150: NO | U150: SI | V150: Pública clasificada | W150: C79072022-Tipo de información Pública clasificada-PRESTACION DE SERVICIOS DE PROMOCION Y PREVENCION – SERVICIOS_ESPECIALIZADOS_ZONA_SANTANDER
A151: PyP | B151: Gerencia de administración del riesgo | C151: No | D151: C79082022 | E151: 93141808 | F151: PRESTACION DE SERVICIOS DE PROMOCION Y PREVENCION – SERVICIOS_ESPECIALIZADOS_ZONA_SANTANDER | G151: 1/01/2022 | H151: =MONTH(G151) -> 1 | I151: 30/11/2022 | J151: 11.1 | K151: Invitación directa | L151: GastosAdministrativos | M151: 150000000 | N151: 150000000 | O151: No | P151: N/A | Q151: Gerencia de Abastecimiento Estratégico contratacion@positiva.gov.co PBX: (1)6502200 Ext: 10641 | R151: SI | S151: SI | T151: NO | U151: SI | V151: =IF(U151="SI","Pública clasificada","Pública") -> Pública clasificada | W151: =CONCATENATE(D151,"-","Tipo de información"," ",V151,"-",F151) -> C79082022-Tipo de información Pública clasificada-PRESTACION DE SERVICIOS DE PROMOCION Y PREVENCION – SERVICIOS_ESPECIALIZADOS_ZONA_SANTANDER
A152: PyP | B152: Gerencia de administración del riesgo | C152: No | D152: C79092022 | E152: 93141808 | F152: PRESTACION DE SERVICIOS DE PROMOCION Y PREVENCION – SERVICIOS_ESPECIALIZADOS_ZONA_SANTANDER | G152: 1/01/2022 | H152: 1 | I152: 30/11/2022 | J152: 11.1 | K152: Invitación directa | L152: GastosAdministrativos | M152: 35000000 | N152: 35000000 | O152: No | P152: N/A | Q152: Gerencia de Abastecimiento Estratégico contratacion@positiva.gov.co PBX: (1)6502200 Ext: 10641 | R152: SI | S152: SI | T152: NO | U152: SI | V152: Pública clasificada | W152: C79092022-Tipo de información Pública clasificada-PRESTACION DE SERVICIOS DE PROMOCION Y PREVENCION – SERVICIOS_ESPECIALIZADOS_ZONA_SANTANDER
A153: PyP | B153: Gerencia de administración del riesgo | C153: No | D153: C79102022 | E153: 93141808 | F153: PRESTACION DE SERVICIOS DE PROMOCION Y PREVENCION – SERVICIOS_ESPECIALIZADOS_ZONA_SANTANDER | G153: 1/01/2022 | H153: 1 | I153: 30/11/2022 | J153: 11.1 | K153: Invitación directa | L153: GastosAdministrativos | M153: 210722891 | N153: 210722891 | O153: No | P153: N/A | Q153: Gerencia de Abastecimiento Estratégico contratacion@positiva.gov.co PBX: (1)6502200 Ext: 10641 | R153: SI | S153: SI | T153: NO | U153: SI | V153: Pública clasificada | W153: C79102022-Tipo de información Pública clasificada-PRESTACION DE SERVICIOS DE PROMOCION Y PREVENCION – SERVICIOS_ESPECIALIZADOS_ZONA_SANTANDER
A154: PyP | B154: Gerencia de administración del riesgo | C154: No | D154: C79112022 | E154: 93141808 | F154: PRESTACION DE SERVICIOS DE PROMOCION Y PREVENCION – SERVICIOS_ESPECIALIZADOS_ZONA_SANTANDER | G154: 1/01/2022 | H154: 1 | I154: 30/11/2022 | J154: 11.1 | K154: Invitación directa | L154: GastosAdministrativos | M154: 100000000 | N154: 100000000 | O154: No | P154: N/A | Q154: Gerencia de Abastecimiento Estratégico contratacion@positiva.gov.co PBX: (1)6502200 Ext: 10641 | R154: SI | S154: SI | T154: NO | U154: SI | V154: Pública clasificada | W154: C79112022-Tipo de información Pública clasificada-PRESTACION DE SERVICIOS DE PROMOCION Y PREVENCION – SERVICIOS_ESPECIALIZADOS_ZONA_SANTANDER
A155: PyP | B155: Gerencia de administración del riesgo | C155: No | D155: C79122022 | E155: 93141808 | F155: PRESTACION DE SERVICIOS DE PROMOCION Y PREVENCION – SERVICIOS_ESPECIALIZADOS_ZONA_SANTANDER | G155: 1/01/2022 | H155: 1 | I155: 30/11/2022 | J155: 11.1 | K155: Invitación directa | L155: GastosAdministrativos | M155: 35000000 | N155: 35000000 | O155: No | P155: N/A | Q155: Gerencia de Abastecimiento Estratégico contratacion@positiva.gov.co PBX: (1)6502200 Ext: 10641 | R155: SI | S155: SI | T155: NO | U155: SI | V155: Pública clasificada | W155: C79122022-Tipo de información Pública clasificada-PRESTACION DE SERVICIOS DE PROMOCION Y PREVENCION – SERVICIOS_ESPECIALIZADOS_ZONA_SANTANDER
A156: PyP | B156: Gerencia de administración del riesgo | C156: No | D156: C79132022 | E156: 93141808 | F156: PRESTACION DE SERVICIOS DE PROMOCION Y PREVENCION – SERVICIOS_ESPECIALIZADOS_ZONA_SANTANDER | G156: 1/01/2022 | H156: 1 | I156: 30/11/2022 | J156: 11.1 | K156: Invitación directa | L156: GastosAdministrativos | M156: 184545296 | N156: 184545296 | O156: No | P156: N/A | Q156: Gerencia de Abastecimiento Estratégico contratacion@positiva.gov.co PBX: (1)6502200 Ext: 10641 | R156: SI | S156: SI | T156: NO | U156: SI | V156: Pública clasificada | W156: C79132022-Tipo de información Pública clasificada-PRESTACION DE SERVICIOS DE PROMOCION Y PREVENCION – SERVICIOS_ESPECIALIZADOS_ZONA_SANTANDER
A157: PyP | B157: Gerencia de administración del riesgo | C157: No | D157: C79142022 | E157: 93141808 | F157: PRESTACION DE SERVICIOS DE PROMOCION Y PREVENCION – SERVICIOS_ESPECIALIZADOS_ZONA_SANTANDER | G157: 1/01/2022 | H157: 1 | I157: 30/11/2022 | J157: =(I157-G157)/30 -> 11.1 | K157: Invitación directa | L157: GastosAdministrativos | M157: 226000000 | N157: 226000000 | O157: No | P157: N/A | Q157: Gerencia de Abastecimiento Estratégico contratacion@positiva.gov.co PBX: (1)6502200 Ext: 10641 | R157: SI | S157: SI | T157: NO | U157: SI | V157: Pública clasificada | W157: C79142022-Tipo de información Pública clasificada-PRESTACION DE SERVICIOS DE PROMOCION Y PREVENCION – SERVICIOS_ESPECIALIZADOS_ZONA_SANTANDER
A158: PyP | B158: Gerencia de administración del riesgo | C158: No | D158: C79152022 | E158: 93141808 | F158: PRESTACION DE SERVICIOS DE PROMOCION Y PREVENCION – SERVICIOS_ESPECIALIZADOS_ZONA_SANTANDER | G158: 1/01/2022 | H158: 1 | I158: 30/11/2022 | J158: 11.1 | K158: Invitación directa | L158: GastosAdministrativos | M158: 50000000 | N158: 50000000 | O158: No | P158: N/A | Q158: Gerencia de Abastecimiento Estratégico contratacion@positiva.gov.co PBX: (1)6502200 Ext: 10641 | R158: SI | S158: SI | T158: NO | U158: SI | V158: Pública clasificada | W158: C79152022-Tipo de información Pública clasificada-PRESTACION DE SERVICIOS DE PROMOCION Y PREVENCION – SERVICIOS_ESPECIALIZADOS_ZONA_SANTANDER
A159: PyP | B159: Gerencia de administración del riesgo | C159: No | D159: C79162022 | E159: 93141808 | F159: PRESTACION DE SERVICIOS DE PROMOCION Y PREVENCION – SERVICIOS_ESPECIALIZADOS_ZONA_SANTANDER | G159: 1/01/2022 | H159: 1 | I159: 30/11/2022 | J159: 11.1 | K159: Invitación directa | L159: GastosAdministrativos | M159: 65000000 | N159: 65000000 | O159: No | P159: N/A | Q159: Gerencia de Abastecimiento Estratégico contratacion@positiva.gov.co PBX: (1)6502200 Ext: 10641 | R159: SI | S159: SI | T159: NO | U159: SI | V159: Pública clasificada | W159: C79162022-Tipo de información Pública clasificada-PRESTACION DE SERVICIOS DE PROMOCION Y PREVENCION – SERVICIOS_ESPECIALIZADOS_ZONA_SANTANDER
A160: PyP | B160: Gerencia de administración del riesgo | C160: No | D160: C79172022 | E160: 93141808 | F160: PRESTACION DE SERVICIOS DE PROMOCION Y PREVENCION – SERVICIOS_ESPECIALIZADOS_ZONA_SANTANDER | G160: 1/01/2022 | H160: 1 | I160: 30/11/2022 | J160: 11.1 | K160: Invitación directa | L160: GastosAdministrativos | M160: 100000000 | N160: 100000000 | O160: No | P160: N/A | Q160: Gerencia de Abastecimiento Estratégico contratacion@positiva.gov.co PBX: (1)6502200 Ext: 10641 | R160: SI | S160: SI | T160: NO | U160: SI | V160: Pública clasificada | W160: C79172022-Tipo de información Pública clasificada-PRESTACION DE SERVICIOS DE PROMOCION Y PREVENCION – SERVICIOS_ESPECIALIZADOS_ZONA_SANTANDER
A161: PyP | B161: Gerencia de administración del riesgo | C161: No | D161: C79182022 | E161: 93141808 | F161: PRESTACION DE SERVICIOS DE PROMOCION Y PREVENCION – SERVICIOS_ESPECIALIZADOS_ZONA_SANTANDER | G161: 1/01/2022 | H161: 1 | I161: 30/11/2022 | J161: 11.1 | K161: Invitación directa | L161: GastosAdministrativos | M161: 170000000 | N161: 170000000 | O161: No | P161: N/A | Q161: Gerencia de Abastecimiento Estratégico contratacion@positiva.gov.co PBX: (1)6502200 Ext: 10641 | R161: SI | S161: SI | T161: NO | U161: SI | V161: Pública clasificada | W161: C79182022-Tipo de información Pública clasificada-PRESTACION DE SERVICIOS DE PROMOCION Y PREVENCION – SERVICIOS_ESPECIALIZADOS_ZONA_SANTANDER
A162: PyP | B162: Gerencia de administración del riesgo | C162: No | D162: C79192022 | E162: 93141808 | F162: PRESTACION DE SERVICIOS DE PROMOCION Y PREVENCION – SERVICIOS_ESPECIALIZADOS_ZONA_SANTANDER | G162: 1/01/2022 | H162: 1 | I162: 30/11/2022 | J162: 11.1 | K162: Invitación directa | L162: GastosAdministrativos | M162: 176000000 | N162: 176000000 | O162: No | P162: N/A | Q162: Gerencia de Abastecimiento Estratégico contratacion@positiva.gov.co PBX: (1)6502200 Ext: 10641 | R162: SI | S162: SI | T162: NO | U162: SI | V162: Pública clasificada | W162: C79192022-Tipo de información Pública clasificada-PRESTACION DE SERVICIOS DE PROMOCION Y PREVENCION – SERVICIOS_ESPECIALIZADOS_ZONA_SANTANDER
A163: PyP | B163: Gerencia de administración del riesgo | C163: No | D163: C79202022 | E163: 93141808 | F163: PRESTACION DE SERVICIOS DE PROMOCION Y PREVENCION – SERVICIOS_ESPECIALIZADOS_ZONA_SANTANDER | G163: 1/01/2022 | H163: 1 | I163: 30/11/2022 | J163: 11.1 | K163: Invitación directa | L163: GastosAdministrativos | M163: 330000000 | N163: 330000000 | O163: No | P163: N/A | Q163: Gerencia de Abastecimiento Estratégico contratacion@positiva.gov.co PBX: (1)6502200 Ext: 10641 | R163: SI | S163: SI | T163: NO | U163: SI | V163: Pública clasificada | W163: C79202022-Tipo de información Pública clasificada-PRESTACION DE SERVICIOS DE PROMOCION Y PREVENCION – SERVICIOS_ESPECIALIZADOS_ZONA_SANTANDER
A164: PyP | B164: Gerencia de administración del riesgo | C164: No | D164: C79212022 | E164: 93141808 | F164: PRESTACION DE SERVICIOS DE PROMOCION Y PREVENCION – SERVICIOS_ESPECIALIZADOS_ZONA_SANTANDER | G164: 1/01/2022 | H164: 1 | I164: 30/11/2022 | J164: 11.1 | K164: Invitación directa | L164: GastosAdministrativos | M164: 65000000 | N164: 65000000 | O164: No | P164: N/A | Q164: Gerencia de Abastecimiento Estratégico contratacion@positiva.gov.co PBX: (1)6502200 Ext: 10641 | R164: SI | S164: SI | T164: NO | U164: SI | V164: Pública clasificada | W164: C79212022-Tipo de información Pública clasificada-PRESTACION DE SERVICIOS DE PROMOCION Y PREVENCION – SERVICIOS_ESPECIALIZADOS_ZONA_SANTANDER
A165: PyP | B165: Gerencia de administración del riesgo | C165: No | D165: C79222022 | E165: 93141808 | F165: PRESTACION DE SERVICIOS DE PROMOCION Y PREVENCION – SERVICIOS_ESPECIALIZADOS_ZONA_SANTANDER | G165: 1/01/2022 | H165: 1 | I165: 30/11/2022 | J165: 11.1 | K165: Invitación directa | L165: GastosAdministrativos | M165: 50470128 | N165: 50470128 | O165: No | P165: N/A | Q165: Gerencia de Abastecimiento Estratégico contratacion@positiva.gov.co PBX: (1)6502200 Ext: 10641 | R165: SI | S165: SI | T165: NO | U165: SI | V165: Pública clasificada | W165: C79222022-Tipo de información Pública clasificada-PRESTACION DE SERVICIOS DE PROMOCION Y PREVENCION – SERVICIOS_ESPECIALIZADOS_ZONA_SANTANDER
A166: PyP | B166: Gerencia de administración del riesgo | C166: No | D166: C79232022 | E166: 93141808 | F166: PRESTACION DE SERVICIOS DE PROMOCION Y PREVENCION – SERVICIOS_ESPECIALIZADOS_ZONA_SANTANDER | G166: 1/01/2022 | H166: 1 | I166: 30/11/2022 | J166: 11.1 | K166: Invitación directa | L166: GastosAdministrativos | M166: 55000000 | N166: 55000000 | O166: No | P166: N/A | Q166: Gerencia de Abastecimiento Estratégico contratacion@positiva.gov.co PBX: (1)6502200 Ext: 10641 | R166: SI | S166: SI | T166: NO | U166: SI | V166: Pública clasificada | W166: C79232022-Tipo de información Pública clasificada-PRESTACION DE SERVICIOS DE PROMOCION Y PREVENCION – SERVICIOS_ESPECIALIZADOS_ZONA_SANTANDER
A167: PyP | B167: Gerencia de administración del riesgo | C167: No | D167: C80012022 | E167: 93141808 | F167: PRESTACION DE SERVICIOS DE PROMOCION Y PREVENCION – SERVICIOS_ESPECIALIZADOS_ZONA_VALLE | G167: 1/01/2022 | H167: 1 | I167: 30/11/2022 | J167: 11.1 | K167: Invitación directa | L167: GastosAdministrativos | M167: 160714286 | N167: 160714286 | O167: No | P167: N/A | Q167: Gerencia de Abastecimiento Estratégico contratacion@positiva.gov.co PBX: (1)6502200 Ext: 10641 | R167: SI | S167: SI | T167: NO | U167: SI | V167: Pública clasificada | W167: C80012022-Tipo de información Pública clasificada-PRESTACION DE SERVICIOS DE PROMOCION Y PREVENCION – SERVICIOS_ESPECIALIZADOS_ZONA_VALLE
A168: PyP | B168: Gerencia de administración del riesgo | C168: No | D168: C80022022 | E168: 93141808 | F168: PRESTACION DE SERVICIOS DE PROMOCION Y PREVENCION – SERVICIOS_ESPECIALIZADOS_ZONA_VALLE | G168: 1/01/2022 | H168: 1 | I168: 30/11/2022 | J168: 11.1 | K168: Invitación directa | L168: GastosAdministrativos | M168: 56701031 | N168: 56701031 | O168: No | P168: N/A | Q168: Gerencia de Abastecimiento Estratégico contratacion@positiva.gov.co PBX: (1)6502200 Ext: 10641 | R168: SI | S168: SI | T168: NO | U168: SI | V168: Pública clasificada | W168: C80022022-Tipo de información Pública clasificada-PRESTACION DE SERVICIOS DE PROMOCION Y PREVENCION – SERVICIOS_ESPECIALIZADOS_ZONA_VALLE
A169: PyP | B169: Gerencia de administración del riesgo | C169: No | D169: C80032022 | E169: 93141808 | F169: PRESTACION DE SERVICIOS DE PROMOCION Y PREVENCION – SERVICIOS_ESPECIALIZADOS_ZONA_VALLE | G169: 1/01/2022 | H169: 1 | I169: 30/11/2022 | J169: 11.1 | K169: Invitación directa | L169: GastosAdministrativos | M169: 105201342 | N169: 105201342 | O169: No | P169: N/A | Q169: Gerencia de Abastecimiento Estratégico contratacion@positiva.gov.co PBX: (1)6502200 Ext: 10641 | R169: SI | S169: SI | T169: NO | U169: SI | V169: Pública clasificada | W169: C80032022-Tipo de información Pública clasificada-PRESTACION DE SERVICIOS DE PROMOCION Y PREVENCION – SERVICIOS_ESPECIALIZADOS_ZONA_VALLE
A170: PyP | B170: Gerencia de administración del riesgo | C170: No | D170: C80042022 | E170: 93141808 | F170: PRESTACION DE SERVICIOS DE PROMOCION Y PREVENCION – SERVICIOS_ESPECIALIZADOS_ZONA_VALLE | G170: 1/01/2022 | H170: 1 | I170: 30/11/2022 | J170: 11.1 | K170: Invitación directa | L170: GastosAdministrativos | M170: 174834437 | N170: 174834437 | O170: No | P170: N/A | Q170: Gerencia de Abastecimiento Estratégico contratacion@positiva.gov.co PBX: (1)6502200 Ext: 10641 | R170: SI | S170: SI | T170: NO | U170: SI | V170: Pública clasificada | W170: C80042022-Tipo de información Pública clasificada-PRESTACION DE SERVICIOS DE PROMOCION Y PREVENCION – SERVICIOS_ESPECIALIZADOS_ZONA_VALLE
A171: PyP | B171: Gerencia de administración del riesgo | C171: No | D171: C80052022 | E171: 93141808 | F171: PRESTACION DE SERVICIOS DE PROMOCION Y PREVENCION – SERVICIOS_ESPECIALIZADOS_ZONA_VALLE | G171: 1/01/2022 | H171: 1 | I171: 30/11/2022 | J171: 11.1 | K171: Invitación directa | L171: GastosAdministrativos | M171: 382108894 | N171: 382108894 | O171: No | P171: N/A | Q171: Gerencia de Abastecimiento Estratégico contratacion@positiva.gov.co PBX: (1)6502200 Ext: 10641 | R171: SI | S171: SI | T171: NO | U171: SI | V171: Pública clasificada | W171: C80052022-Tipo de información Pública clasificada-PRESTACION DE SERVICIOS DE PROMOCION Y PREVENCION – SERVICIOS_ESPECIALIZADOS_ZONA_VALLE
A172: PyP | B172: Gerencia de administración del riesgo | C172: No | D172: C80062022 | E172: 93141808 | F172: PRESTACION DE SERVICIOS DE PROMOCION Y PREVENCION – SERVICIOS_ESPECIALIZADOS_ZONA_VALLE | G172: 1/01/2022 | H172: 1 | I172: 30/11/2022 | J172: 11.1 | K172: Invitación directa | L172: GastosAdministrativos | M172: 889221557 | N172: 889221557 | O172: No | P172: N/A | Q172: Gerencia de Abastecimiento Estratégico contratacion@positiva.gov.co PBX: (1)6502200 Ext: 10641 | R172: SI | S172: SI | T172: NO | U172: SI | V172: Pública clasificada | W172: C80062022-Tipo de información Pública clasificada-PRESTACION DE SERVICIOS DE PROMOCION Y PREVENCION – SERVICIOS_ESPECIALIZADOS_ZONA_VALLE
A173: PyP | B173: Gerencia de administración del riesgo | C173: No | D173: C80072022 | E173: 93141808 | F173: PRESTACION DE SERVICIOS DE PROMOCION Y PREVENCION – SERVICIOS_ESPECIALIZADOS_ZONA_VALLE | G173: 1/01/2022 | H173: 1 | I173: 30/11/2022 | J173: 11.1 | K173: Invitación directa | L173: GastosAdministrativos | M173: 316530612 | N173: 316530612 | O173: No | P173: N/A | Q173: Gerencia de Abastecimiento Estratégico contratacion@positiva.gov.co PBX: (1)6502200 Ext: 10641 | R173: SI | S173: SI | T173: NO | U173: SI | V173: Pública clasificada | W173: C80072022-Tipo de información Pública clasificada-PRESTACION DE SERVICIOS DE PROMOCION Y PREVENCION – SERVICIOS_ESPECIALIZADOS_ZONA_VALLE
A174: PyP | B174: Gerencia de administración del riesgo | C174: No | D174: C80082022 | E174: 93141808 | F174: PRESTACION DE SERVICIOS DE PROMOCION Y PREVENCION – SERVICIOS_ESPECIALIZADOS_ZONA_VALLE | G174: 1/01/2022 | H174: 1 | I174: 30/11/2022 | J174: 11.1 | K174: Invitación directa | L174: GastosAdministrativos | M174: 200000000 | N174: 200000000 | O174: No | P174: N/A | Q174: Gerencia de Abastecimiento Estratégico contratacion@positiva.gov.co PBX: (1)6502200 Ext: 10641 | R174: SI | S174: SI | T174: NO | U174: SI | V174: Pública clasificada | W174: C80082022-Tipo de información Pública clasificada-PRESTACION DE SERVICIOS DE PROMOCION Y PREVENCION – SERVICIOS_ESPECIALIZADOS_ZONA_VALLE
A175: PyP | B175: Gerencia de administración del riesgo | C175: No | D175: C80092022 | E175: 93141808 | F175: PRESTACION DE SERVICIOS DE PROMOCION Y PREVENCION – SERVICIOS_ESPECIALIZADOS_ZONA_VALLE | G175: 1/01/2022 | H175: 1 | I175: 30/11/2022 | J175: 11.1 | K175: Invitación directa | L175: GastosAdministrativos | M175: 200000000 | N175: 200000000 | O175: No | P175: N/A | Q175: Gerencia de Abastecimiento Estratégico contratacion@positiva.gov.co PBX: (1)6502200 Ext: 10641 | R175: SI | S175: SI | T175: NO | U175: SI | V175: Pública clasificada | W175: C80092022-Tipo de información Pública clasificada-PRESTACION DE SERVICIOS DE PROMOCION Y PREVENCION – SERVICIOS_ESPECIALIZADOS_ZONA_VALLE
A176: PyP | B176: Gerencia de administración del riesgo | C176: No | D176: C80102022 | E176: 93141808 | F176: PRESTACION DE SERVICIOS DE PROMOCION Y PREVENCION – SERVICIOS_ESPECIALIZADOS_ZONA_VALLE | G176: 1/01/2022 | H176: 1 | I176: 30/11/2022 | J176: 11.1 | K176: Invitación directa | L176: GastosAdministrativos | M176: 60000000 | N176: 60000000 | O176: No | P176: N/A | Q176: Gerencia de Abastecimiento Estratégico contratacion@positiva.gov.co PBX: (1)6502200 Ext: 10641 | R176: SI | S176: SI | T176: NO | U176: SI | V176: Pública clasificada | W176: C80102022-Tipo de información Pública clasificada-PRESTACION DE SERVICIOS DE PROMOCION Y PREVENCION – SERVICIOS_ESPECIALIZADOS_ZONA_VALLE
A177: PyP | B177: Gerencia de administración del riesgo | C177: No | D177: C80112022 | E177: 93141808 | F177: PRESTACION DE SERVICIOS DE PROMOCION Y PREVENCION – SERVICIOS_ESPECIALIZADOS_ZONA_VALLE | G177: 1/01/2022 | H177: 1 | I177: 30/11/2022 | J177: 11.1 | K177: Invitación directa | L177: GastosAdministrativos | M177: 90000000 | N177: 90000000 | O177: No | P177: N/A | Q177: Gerencia de Abastecimiento Estratégico contratacion@positiva.gov.co PBX: (1)6502200 Ext: 10641 | R177: SI | S177: SI | T177: NO | U177: SI | V177: Pública clasificada | W177: C80112022-Tipo de información Pública clasificada-PRESTACION DE SERVICIOS DE PROMOCION Y PREVENCION – SERVICIOS_ESPECIALIZADOS_ZONA_VALLE
A178: PyP | B178: Gerencia de administración del riesgo | C178: No | D178: C80122022 | E178: 93141808 | F178: PRESTACION DE SERVICIOS DE PROMOCION Y PREVENCION – SERVICIOS_ESPECIALIZADOS_ZONA_VALLE | G178: 1/01/2022 | H178: 1 | I178: 30/11/2022 | J178: 11.1 | K178: Invitación directa | L178: GastosAdministrativos | M178: 75000000 | N178: 75000000 | O178: No | P178: N/A | Q178: Gerencia de Abastecimiento Estratégico contratacion@positiva.gov.co PBX: (1)6502200 Ext: 10641 | R178: SI | S178: SI | T178: NO | U178: SI | V178: Pública clasificada | W178: C80122022-Tipo de información Pública clasificada-PRESTACION DE SERVICIOS DE PROMOCION Y PREVENCION – SERVICIOS_ESPECIALIZADOS_ZONA_VALLE
A179: PyP | B179: Gerencia de administración del riesgo | C179: No | D179: C80132022 | E179: 93141808 | F179: PRESTACION DE SERVICIOS DE PROMOCION Y PREVENCION – SERVICIOS_ESPECIALIZADOS_ZONA_VALLE | G179: 1/01/2022 | H179: 1 | I179: 30/11/2022 | J179: 11.1 | K179: Invitación directa | L179: GastosAdministrativos | M179: 450000000 | N179: 450000000 | O179: No | P179: N/A | Q179: Gerencia de Abastecimiento Estratégico contratacion@positiva.gov.co PBX: (1)6502200 Ext: 10641 | R179: SI | S179: SI | T179: NO | U179: SI | V179: Pública clasificada | W179: C80132022-Tipo de información Pública clasificada-PRESTACION DE SERVICIOS DE PROMOCION Y PREVENCION – SERVICIOS_ESPECIALIZADOS_ZONA_VALLE
A180: PyP | B180: Gerencia de administración del riesgo | C180: No | D180: C80142022 | E180: 93141808 | F180: PRESTACION DE SERVICIOS DE PROMOCION Y PREVENCION – SERVICIOS_ESPECIALIZADOS_ZONA_VALLE | G180: 1/01/2022 | H180: 1 | I180: 30/11/2022 | J180: 11.1 | K180: Invitación directa | L180: GastosAdministrativos | M180: 60000000 | N180: 60000000 | O180: No | P180: N/A | Q180: Gerencia de Abastecimiento Estratégico contratacion@positiva.gov.co PBX: (1)6502200 Ext: 10641 | R180: SI | S180: SI | T180: NO | U180: SI | V180: Pública clasificada | W180: C80142022-Tipo de información Pública clasificada-PRESTACION DE SERVICIOS DE PROMOCION Y PREVENCION – SERVICIOS_ESPECIALIZADOS_ZONA_VALLE
A181: PyP | B181: Gerencia de administración del riesgo | C181: No | D181: C80152022 | E181: 93141808 | F181: PRESTACION DE SERVICIOS DE PROMOCION Y PREVENCION – SERVICIOS_ESPECIALIZADOS_ZONA_VALLE | G181: 1/01/2022 | H181: 1 | I181: 30/11/2022 | J181: 11.1 | K181: Invitación directa | L181: GastosAdministrativos | M181: 90000000 | N181: 90000000 | O181: No | P181: N/A | Q181: Gerencia de Abastecimiento Estratégico contratacion@positiva.gov.co PBX: (1)6502200 Ext: 10641 | R181: SI | S181: SI | T181: NO | U181: SI | V181: Pública clasificada | W181: C80152022-Tipo de información Pública clasificada-PRESTACION DE SERVICIOS DE PROMOCION Y PREVENCION – SERVICIOS_ESPECIALIZADOS_ZONA_VALLE
A182: PyP | B182: Gerencia de administración del riesgo | C182: No | D182: C80162022 | E182: 93141808 | F182: PRESTACION DE SERVICIOS DE PROMOCION Y PREVENCION – SERVICIOS_ESPECIALIZADOS_ZONA_VALLE | G182: 1/01/2022 | H182: 1 | I182: 30/11/2022 | J182: 11.1 | K182: Invitación directa | L182: GastosAdministrativos | M182: 416701769 | N182: 416701769 | O182: No | P182: N/A | Q182: Gerencia de Abastecimiento Estratégico contratacion@positiva.gov.co PBX: (1)6502200 Ext: 10641 | R182: SI | S182: SI | T182: NO | U182: SI | V182: Pública clasificada | W182: C80162022-Tipo de información Pública clasificada-PRESTACION DE SERVICIOS DE PROMOCION Y PREVENCION – SERVICIOS_ESPECIALIZADOS_ZONA_VALLE
A183: PyP | B183: Gerencia de administración del riesgo | C183: No | D183: C80172022 | E183: 93141808 | F183: PRESTACION DE SERVICIOS DE PROMOCION Y PREVENCION – SERVICIOS_ESPECIALIZADOS_ZONA_VALLE | G183: 1/01/2022 | H183: 1 | I183: 30/11/2022 | J183: 11.1 | K183: Invitación directa | L183: GastosAdministrativos | M183: 22000000 | N183: 22000000 | O183: No | P183: N/A | Q183: Gerencia de Abastecimiento Estratégico contratacion@positiva.gov.co PBX: (1)6502200 Ext: 10641 | R183: SI | S183: SI | T183: NO | U183: SI | V183: Pública clasificada | W183: C80172022-Tipo de información Pública clasificada-PRESTACION DE SERVICIOS DE PROMOCION Y PREVENCION – SERVICIOS_ESPECIALIZADOS_ZONA_VALLE
A184: PyP | B184: Gerencia de administración del riesgo | C184: No | D184: C80182022 | E184: 93141808 | F184: PRESTACION DE SERVICIOS DE PROMOCION Y PREVENCION – SERVICIOS_ESPECIALIZADOS_ZONA_VALLE | G184: 1/01/2022 | H184: 1 | I184: 30/11/2022 | J184: 11.1 | K184: Invitación directa | L184: GastosAdministrativos | M184: 572068711 | N184: 572068711 | O184: No | P184: N/A | Q184: Gerencia de Abastecimiento Estratégico contratacion@positiva.gov.co PBX: (1)6502200 Ext: 10641 | R184: SI | S184: SI | T184: NO | U184: SI | V184: Pública clasificada | W184: C80182022-Tipo de información Pública clasificada-PRESTACION DE SERVICIOS DE PROMOCION Y PREVENCION – SERVICIOS_ESPECIALIZADOS_ZONA_VALLE
A185: PyP | B185: Gerencia de administración del riesgo | C185: No | D185: C80192022 | E185: 93141808 | F185: PRESTACION DE SERVICIOS DE PROMOCION Y PREVENCION – SERVICIOS_ESPECIALIZADOS_ZONA_VALLE | G185: 1/01/2022 | H185: 1 | I185: 30/11/2022 | J185: 11.1 | K185: Invitación directa | L185: GastosAdministrativos | M185: 55000000 | N185: 55000000 | O185: No | P185: N/A | Q185: Gerencia de Abastecimiento Estratégico contratacion@positiva.gov.co PBX: (1)6502200 Ext: 10641 | R185: SI | S185: SI | T185: NO | U185: SI | V185: Pública clasificada | W185: C80192022-Tipo de información Pública clasificada-PRESTACION DE SERVICIOS DE PROMOCION Y PREVENCION – SERVICIOS_ESPECIALIZADOS_ZONA_VALLE
A186: PyP | B186: Gerencia de administración del riesgo | C186: No | D186: C80202022 | E186: 93141808 | F186: PRESTACION DE SERVICIOS DE PROMOCION Y PREVENCION – SERVICIOS_ESPECIALIZADOS_ZONA_VALLE | G186: 1/01/2022 | H186: 1 | I186: 30/11/2022 | J186: 11.1 | K186: Invitación cerrada | L186: GastosAdministrativos | M186: 450000000 | N186: 450000000 | O186: No | P186: N/A | Q186: Gerencia de Abastecimiento Estratégico contratacion@positiva.gov.co PBX: (1)6502200 Ext: 10641 | R186: SI | S186: SI | T186: NO | U186: SI | V186: Pública clasificada | W186: C80202022-Tipo de información Pública clasificada-PRESTACION DE SERVICIOS DE PROMOCION Y PREVENCION – SERVICIOS_ESPECIALIZADOS_ZONA_VALLE
A187: PyP | B187: Gerencia de administración del riesgo | C187: No | D187: C80212022 | E187: 93141808 | F187: PRESTACION DE SERVICIOS DE PROMOCION Y PREVENCION – SERVICIOS_ESPECIALIZADOS_ZONA_VALLE | G187: 1/01/2022 | H187: 1 | I187: 30/11/2022 | J187: 11.1 | K187: Invitación directa | L187: GastosAdministrativos | M187: 200000000 | N187: 200000000 | O187: No | P187: N/A | Q187: Gerencia de Abastecimiento Estratégico contratacion@positiva.gov.co PBX: (1)6502200 Ext: 10641 | R187: SI | S187: SI | T187: NO | U187: SI | V187: Pública clasificada | W187: C80212022-Tipo de información Pública clasificada-PRESTACION DE SERVICIOS DE PROMOCION Y PREVENCION – SERVICIOS_ESPECIALIZADOS_ZONA_VALLE
A188: PyP | B188: Gerencia de administración del riesgo | C188: No | D188: C80222022 | E188: 93141808 | F188: PRESTACION DE SERVICIOS DE PROMOCION Y PREVENCION – SERVICIOS_ESPECIALIZADOS_ZONA_VALLE | G188: 1/01/2022 | H188: 1 | I188: 30/11/2022 | J188: 11.1 | K188: Invitación directa | L188: GastosAdministrativos | M188: 100000000 | N188: 100000000 | O188: No | P188: N/A | Q188: Gerencia de Abastecimiento Estratégico contratacion@positiva.gov.co PBX: (1)6502200 Ext: 10641 | R188: SI | S188: SI | T188: NO | U188: SI | V188: Pública clasificada | W188: C80222022-Tipo de información Pública clasificada-PRESTACION DE SERVICIOS DE PROMOCION Y PREVENCION – SERVICIOS_ESPECIALIZADOS_ZONA_VALLE
A189: PyP | B189: Gerencia de administración del riesgo | C189: No | D189: C80232022 | E189: 93141808 | F189: PRESTACION DE SERVICIOS DE PROMOCION Y PREVENCION – SERVICIOS_ESPECIALIZADOS_ZONA_VALLE | G189: 1/01/2022 | H189: 1 | I189: 30/11/2022 | J189: 11.1 | K189: Invitación directa | L189: GastosAdministrativos | M189: 27000000 | N189: 27000000 | O189: No | P189: N/A | Q189: Gerencia de Abastecimiento Estratégico contratacion@positiva.gov.co PBX: (1)6502200 Ext: 10641 | R189: SI | S189: SI | T189: NO | U189: SI | V189: Pública clasificada | W189: C80232022-Tipo de información Pública clasificada-PRESTACION DE SERVICIOS DE PROMOCION Y PREVENCION – SERVICIOS_ESPECIALIZADOS_ZONA_VALLE
A190: PyP | B190: Gerencia de administración del riesgo | C190: No | D190: C80242022 | E190: 93141808 | F190: PRESTACION DE SERVICIOS DE PROMOCION Y PREVENCION – SERVICIOS_ESPECIALIZADOS_ZONA_VALLE | G190: 1/01/2022 | H190: 1 | I190: 30/11/2022 | J190: 11.1 | K190: Invitación directa | L190: GastosAdministrativos | M190: 138914237 | N190: 138914237 | O190: No | P190: N/A | Q190: Gerencia de Abastecimiento Estratégico contratacion@positiva.gov.co PBX: (1)6502200 Ext: 10641 | R190: SI | S190: SI | T190: NO | U190: SI | V190: Pública clasificada | W190: C80242022-Tipo de información Pública clasificada-PRESTACION DE SERVICIOS DE PROMOCION Y PREVENCION – SERVICIOS_ESPECIALIZADOS_ZONA_VALLE
A191: PyP | B191: Gerencia de administración del riesgo | C191: No | D191: C80252022 | E191: 93141808 | F191: PRESTACION DE SERVICIOS DE PROMOCION Y PREVENCION – SERVICIOS_ESPECIALIZADOS_ZONA_VALLE | G191: 1/01/2022 | H191: 1 | I191: 30/11/2022 | J191: 11.1 | K191: Invitación directa | L191: GastosAdministrativos | M191: 199450549 | N191: 199450549 | O191: No | P191: N/A | Q191: Gerencia de Abastecimiento Estratégico contratacion@positiva.gov.co PBX: (1)6502200 Ext: 10641 | R191: SI | S191: SI | T191: NO | U191: SI | V191: Pública clasificada | W191: C80252022-Tipo de información Pública clasificada-PRESTACION DE SERVICIOS DE PROMOCION Y PREVENCION – SERVICIOS_ESPECIALIZADOS_ZONA_VALLE
A192: PyP | B192: Gerencia de administración del riesgo | C192: No | D192: C80262022 | E192: 93141808 | F192: PRESTACION DE SERVICIOS DE PROMOCION Y PREVENCION – SERVICIOS_ESPECIALIZADOS_ZONA_VALLE | G192: 1/01/2022 | H192: 1 | I192: 30/11/2022 | J192: 11.1 | K192: Invitación directa | L192: GastosAdministrativos | M192: 127729791 | N192: 127729791 | O192: No | P192: N/A | Q192: Gerencia de Abastecimiento Estratégico contratacion@positiva.gov.co PBX: (1)6502200 Ext: 10641 | R192: SI | S192: SI | T192: NO | U192: SI | V192: Pública clasificada | W192: C80262022-Tipo de información Pública clasificada-PRESTACION DE SERVICIOS DE PROMOCION Y PREVENCION – SERVICIOS_ESPECIALIZADOS_ZONA_VALLE
A193: PyP | B193: Gerencia de administración del riesgo | C193: No | D193: C76322022 | E193: 93141808 | F193: PRESTACION DE SERVICIOS DE PROMOCION Y PREVENCION – SERVICIOS_ESPECIALIZADOS_ZONA_ATLANTICO | G193: 1/01/2022 | H193: 1 | I193: 30/11/2022 | J193: 11.1 | K193: Invitación directa | L193: GastosAdministrativos | M193: 34946600 | N193: 34946600 | O193: No | P193: N/A | Q193: Gerencia de Abastecimiento Estratégico contratacion@positiva.gov.co PBX: (1)6502200 Ext: 10641 | R193: SI | S193: SI | T193: NO | U193: SI | V193: Pública clasificada | W193: C76322022-Tipo de información Pública clasificada-PRESTACION DE SERVICIOS DE PROMOCION Y PREVENCION – SERVICIOS_ESPECIALIZADOS_ZONA_ATLANTICO
A194: PyP | B194: Gerencia de administración del riesgo | C194: No | D194: C77042022 | E194: 93141808 | F194: PRESTACION DE SERVICIOS DE PROMOCION Y PREVENCION – SERVICIOS_ESPECIALIZADOS_ZONA_BOGOTA | G194: 1/01/2022 | H194: 1 | I194: 30/11/2022 | J194: 11.1 | K194: Invitación directa | L194: GastosAdministrativos | M194: 1200000000 | N194: 1200000000 | O194: No | P194: N/A | Q194: Gerencia de Abastecimiento Estratégico contratacion@positiva.gov.co PBX: (1)6502200 Ext: 10641 | R194: SI | S194: SI | T194: NO | U194: SI | V194: Pública clasificada | W194: C77042022-Tipo de información Pública clasificada-PRESTACION DE SERVICIOS DE PROMOCION Y PREVENCION – SERVICIOS_ESPECIALIZADOS_ZONA_BOGOTA
A195: PyP | B195: Gerencia de administración del riesgo | C195: No | D195: C77052022 | E195: 93141808 | F195: PRESTACION DE SERVICIOS DE PROMOCION Y PREVENCION – SERVICIOS_ESPECIALIZADOS_ZONA_BOGOTA | G195: 1/01/2022 | H195: 1 | I195: 30/11/2022 | J195: 11.1 | K195: Invitación directa | L195: GastosAdministrativos | M195: 175220196 | N195: 175220196 | O195: No | P195: N/A | Q195: Gerencia de Abastecimiento Estratégico contratacion@positiva.gov.co PBX: (1)6502200 Ext: 10641 | R195: SI | S195: SI | T195: NO | U195: SI | V195: Pública clasificada | W195: C77052022-Tipo de información Pública clasificada-PRESTACION DE SERVICIOS DE PROMOCION Y PREVENCION – SERVICIOS_ESPECIALIZADOS_ZONA_BOGOTA
A196: PyP | B196: Gerencia de administración del riesgo | C196: No | D196: C77062022 | E196: 93141808 | F196: PRESTACION DE SERVICIOS DE PROMOCION Y PREVENCION – SERVICIOS_ESPECIALIZADOS_ZONA_BOGOTA | G196: 1/01/2022 | H196: 1 | I196: 30/11/2022 | J196: 11.1 | K196: Invitación directa | L196: GastosAdministrativos | M196: 300000000 | N196: 300000000 | O196: No | P196: N/A | Q196: Gerencia de Abastecimiento Estratégico contratacion@positiva.gov.co PBX: (1)6502200 Ext: 10641 | R196: SI | S196: SI | T196: NO | U196: SI | V196: Pública clasificada | W196: C77062022-Tipo de información Pública clasificada-PRESTACION DE SERVICIOS DE PROMOCION Y PREVENCION – SERVICIOS_ESPECIALIZADOS_ZONA_BOGOTA
A197: PyP | B197: Gerencia de administración del riesgo | C197: No | D197: C77072022 | E197: 93141808 | F197: PRESTACION DE SERVICIOS DE PROMOCION Y PREVENCION – SERVICIOS_ESPECIALIZADOS_ZONA_BOGOTA | G197: 1/01/2022 | H197: 1 | I197: 30/11/2022 | J197: 11.1 | K197: Invitación directa | L197: GastosAdministrativos | M197: 300000000 | N197: 300000000 | O197: No | P197: N/A | Q197: Gerencia de Abastecimiento Estratégico contratacion@positiva.gov.co PBX: (1)6502200 Ext: 10641 | R197: SI | S197: SI | T197: NO | U197: SI | V197: Pública clasificada | W197: C77072022-Tipo de información Pública clasificada-PRESTACION DE SERVICIOS DE PROMOCION Y PREVENCION – SERVICIOS_ESPECIALIZADOS_ZONA_BOGOTA
A198: PyP | B198: Gerencia de administración del riesgo | C198: No | D198: C77082022 | E198: 93141808 | F198: PRESTACION DE SERVICIOS DE PROMOCION Y PREVENCION – SERVICIOS_ESPECIALIZADOS_ZONA_BOGOTA | G198: 1/01/2022 | H198: 1 | I198: 30/11/2022 | J198: 11.1 | K198: Invitación directa | L198: GastosAdministrativos | M198: 130000000 | N198: 130000000 | O198: No | P198: N/A | Q198: Gerencia de Abastecimiento Estratégico contratacion@positiva.gov.co PBX: (1)6502200 Ext: 10641 | R198: SI | S198: SI | T198: NO | U198: SI | V198: Pública clasificada | W198: C77082022-Tipo de información Pública clasificada-PRESTACION DE SERVICIOS DE PROMOCION Y PREVENCION – SERVICIOS_ESPECIALIZADOS_ZONA_BOGOTA
A199: PyP | B199: Gerencia de administración del riesgo | C199: No | D199: C77092022 | E199: 93141808 | F199: PRESTACION DE SERVICIOS DE PROMOCION Y PREVENCION – SERVICIOS_ESPECIALIZADOS_ZONA_BOGOTA | G199: 1/01/2022 | H199: 1 | I199: 30/11/2022 | J199: 11.1 | K199: Invitación directa | L199: GastosAdministrativos | M199: 60000000 | N199: 60000000 | O199: No | P199: N/A | Q199: Gerencia de Abastecimiento Estratégico contratacion@positiva.gov.co PBX: (1)6502200 Ext: 10641 | R199: SI | S199: SI | T199: NO | U199: SI | V199: Pública clasificada | W199: C77092022-Tipo de información Pública clasificada-PRESTACION DE SERVICIOS DE PROMOCION Y PREVENCION – SERVICIOS_ESPECIALIZADOS_ZONA_BOGOTA
A200: PyP | B200: Gerencia de administración del riesgo | C200: No | D200: C77102022 | E200: 93141808 | F200: PRESTACION DE SERVICIOS DE PROMOCION Y PREVENCION – SERVICIOS_ESPECIALIZADOS_ZONA_BOGOTA | G200: 1/01/2022 | H200: 1 | I200: 30/11/2022 | J200: 11.1 | K200: Invitación directa | L200: GastosAdministrativos | M200: 70000000 | N200: 70000000 | O200: No | P200: N/A | Q200: Gerencia de Abastecimiento Estratégico contratacion@positiva.gov.co PBX: (1)6502200 Ext: 10641 | R200: SI | S200: SI | T200: NO | U200: SI | V200: Pública clasificada | W200: C77102022-Tipo de información Pública clasificada-PRESTACION DE SERVICIOS DE PROMOCION Y PREVENCION – SERVICIOS_ESPECIALIZADOS_ZONA_BOGOTA
A201: PyP | B201: Gerencia de administración del riesgo | C201: No | D201: C77112022 | E201: 93141808 | F201: PRESTACION DE SERVICIOS DE PROMOCION Y PREVENCION – SERVICIOS_ESPECIALIZADOS_ZONA_BOGOTA | G201: 1/01/2022 | H201: 1 | I201: 30/11/2022 | J201: 11.1 | K201: Invitación directa | L201: GastosAdministrativos | M201: 700000000 | N201: 700000000 | O201: No | P201: N/A | Q201: Gerencia de Abastecimiento Estratégico contratacion@positiva.gov.co PBX: (1)6502200 Ext: 10641 | R201: SI | S201: SI | T201: NO | U201: SI | V201: Pública clasificada | W201: C77112022-Tipo de información Pública clasificada-PRESTACION DE SERVICIOS DE PROMOCION Y PREVENCION – SERVICIOS_ESPECIALIZADOS_ZONA_BOGOTA
A202: PyP | B202: Gerencia de administración del riesgo | C202: No | D202: C79242022 | E202: 93141808 | F202: PRESTACION DE SERVICIOS DE PROMOCION Y PREVENCION – SERVICIOS_ESPECIALIZADOS_ZONA_SANTANDER | G202: 1/01/2022 | H202: 1 | I202: 30/11/2022 | J202: 11.1 | K202: Invitación directa | L202: GastosAdministrativos | M202: 61256250 | N202: 61256250 | O202: No | P202: N/A | Q202: Gerencia de Abastecimiento Estratégico contratacion@positiva.gov.co PBX: (1)6502200 Ext: 10641 | R202: SI | S202: SI | T202: NO | U202: SI | V202: Pública clasificada | W202: C79242022-Tipo de información Pública clasificada-PRESTACION DE SERVICIOS DE PROMOCION Y PREVENCION – SERVICIOS_ESPECIALIZADOS_ZONA_SANTANDER
A203: PyP | B203: Gerencia de administración del riesgo | C203: No | D203: C79252022 | E203: 93141808 | F203: PRESTACION DE SERVICIOS DE PROMOCION Y PREVENCION – SERVICIOS_ESPECIALIZADOS_ZONA_SANTANDER | G203: 1/01/2022 | H203: 1 | I203: 30/11/2022 | J203: 11.1 | K203: Invitación directa | L203: GastosAdministrativos | M203: 63845928 | N203: 63845928 | O203: No | P203: N/A | Q203: Gerencia de Abastecimiento Estratégico contratacion@positiva.gov.co PBX: (1)6502200 Ext: 10641 | R203: SI | S203: SI | T203: NO | U203: SI | V203: Pública clasificada | W203: C79252022-Tipo de información Pública clasificada-PRESTACION DE SERVICIOS DE PROMOCION Y PREVENCION – SERVICIOS_ESPECIALIZADOS_ZONA_SANTANDER
A204: PyP | B204: Gerencia de administración del riesgo | C204: No | D204: C79262022 | E204: 93141808 | F204: PRESTACION DE SERVICIOS DE PROMOCION Y PREVENCION – SERVICIOS_ESPECIALIZADOS_ZONA_SANTANDER | G204: 1/01/2022 | H204: 1 | I204: 30/11/2022 | J204: 11.1 | K204: Invitación directa | L204: GastosAdministrativos | M204: 14895833 | N204: 14895833 | O204: No | P204: N/A | Q204: Gerencia de Abastecimiento Estratégico contratacion@positiva.gov.co PBX: (1)6502200 Ext: 10641 | R204: SI | S204: SI | T204: NO | U204: SI | V204: Pública clasificada | W204: C79262022-Tipo de información Pública clasificada-PRESTACION DE SERVICIOS DE PROMOCION Y PREVENCION – SERVICIOS_ESPECIALIZADOS_ZONA_SANTANDER
A205: PyP | B205: Gerencia de administración del riesgo | C205: No | D205: C79272022 | E205: 93141808 | F205: PRESTACION DE SERVICIOS DE PROMOCION Y PREVENCION – SERVICIOS_ESPECIALIZADOS_ZONA_SANTANDER | G205: 1/01/2022 | H205: 1 | I205: 30/11/2022 | J205: 11.1 | K205: Invitación directa | L205: GastosAdministrativos | M205: 79113439 | N205: 79113439 | O205: No | P205: N/A | Q205: Gerencia de Abastecimiento Estratégico contratacion@positiva.gov.co PBX: (1)6502200 Ext: 10641 | R205: SI | S205: SI | T205: NO | U205: SI | V205: Pública clasificada | W205: C79272022-Tipo de información Pública clasificada-PRESTACION DE SERVICIOS DE PROMOCION Y PREVENCION – SERVICIOS_ESPECIALIZADOS_ZONA_SANTANDER
A206: PyP | B206: Gerencia de administración del riesgo | C206: No | D206: C79282022 | E206: 93141808 | F206: PRESTACION DE SERVICIOS DE PROMOCION Y PREVENCION – SERVICIOS_ESPECIALIZADOS_ZONA_SANTANDER | G206: 1/01/2022 | H206: 1 | I206: 30/11/2022 | J206: 11.1 | K206: Invitación directa | L206: GastosAdministrativos | M206: 13678756 | N206: 13678756 | O206: No | P206: N/A | Q206: Gerencia de Abastecimiento Estratégico contratacion@positiva.gov.co PBX: (1)6502200 Ext: 10641 | R206: SI | S206: SI | T206: NO | U206: SI | V206: Pública clasificada | W206: C79282022-Tipo de información Pública clasificada-PRESTACION DE SERVICIOS DE PROMOCION Y PREVENCION – SERVICIOS_ESPECIALIZADOS_ZONA_SANTANDER
... 571 more rows

Sheet Hoja5 (hidden)
A3: Suma de Valor total estimado | B3: Total
A4: Total | B4: 1.92782729e+11
